{"text_format":"1","workbook":"xlsx","n_sheets":11,"sheets":["Registro de cambios","configuracion","DIGITADOR","DATOS","referentes","Otras referencias","AGD_MUESTREOS","AGD_PARAMETRO","AGD_MUESTRAS","AGD_MUESTRAS_VARIABLES","AGD_AUTORIAS"],"not_rendered":{"charts":0,"images":0,"macros":1,"external_links":2,"defined_names":21,"comments":2,"pivot_tables":0},"unopened":[],"bounds":{"document_bytes":16777216,"sheet_cells":100000,"rows_first":2000,"rows_last":500,"rows_between":2000,"halvings":0,"cell_chars":16384,"cell_head_chars":4096},"cells_cut":0,"cells_raw":0,"read":"whole","date_system":"1900"}

{"sheet":"Registro de cambios","index":0,"n_rows":6,"n_cols":7,"rows_kept":6,"cut":false,"hidden":true,"merged":[[2,3,2,6]]}
[]
[]
[null,null,null,"REGISTRO DE CAMBIOS"]
[null,null,null,"VERSIÓN No.","CAMBIO REALIZADO","AUTOR","VIGENTE DESDE\n(DD/MM/AAAA)"]
[null,null,null,"20241005i","Actualización del código de la macro.\n\nSe eliminó la URL de la antigua API de portete:\n       http://portete.invemar.org.co:7003/ArgosWebServices-RESTWebService-context-root/rest/1.0\n\nFue reemplazada por la URL de la API de ARGOS:\n       https://argos.invemar.org.co/api/\n\nLa API contiene End Points que permiten tener mayor control, facilitan la descarga de referentes (listas de usuarios, estaciones, especies, etc.) que corresponden a criterios específicos como el proyecto usado en la plantilla para evitar descargar data innecesaria.\n\nDel mismo modo, también permite la carga de información a la BDD del INVEMAR.\n\nLa macro toma los Endpoints desde la hoja configuracion de una tabla llamada \"Configuración referentes\", a la que se le puede modificar las rutas de la API o agregar nuevas. cabe resaltar que se puede \"quemar\" directamente en la macro los Endpoints que lo requieran.","Juan Muñoz","2024-05-10"]
[null,null,null,"20230807i","Se creó la plantilla desde cero (0), los elementos que componen la plantilla fueron creados para que funcionara para el subcomponente de Playas y Dunas llamado Aspectos Físicos de Playas.\n\nSe modificó la hoja de DIGITADOR añadiendo listas de valores como roles involucrados, observaciones generales que sirven como parámetros del muestreo.\n\nSe crearon todas las columnas que componente la hoja de DATOS, se obtienen valores como la fecha, estación, ancho y pendiente, etc.\n\nSe remapeó toda la hoja de CONFIGURACIÓN para tomar los valores de los muestreos y muestras y generar las tablas que sirven para subir la información al sistema.\n","Kevin Moreno","2023-07-08"]

{"sheet":"configuracion","index":1,"n_rows":71,"n_cols":8,"rows_kept":71,"cut":false,"hidden":true,"merged":[[45,5,45,7],[60,0,60,1],[28,0,35,0],[37,0,42,0],[45,0,45,1],[61,0,61,2],[23,0,26,0],[0,0,2,0],[3,0,5,0],[7,0,8,0],[9,0,15,0],[17,0,21,0]]}
["general","urlServicio","https://argos.invemar.org.co/api/"]
[null,"fila de inicio",3]
[null,"fila de fin",303]
["metodologias","Metodologias",{"$f":"DIGITADOR!B4","v":872}]
[null,"Referentes",300]
[null,"Cantidad maxima de referentes ",300]
["estaciones/investigadores","proyectos",3572]
["Lista especies","metodologias",{"$f":"DIGITADOR!B4","v":872}]
[null,"proyectos",3572]
["MUESTREOS","ID_MUESTREO","DATOS,B"]
[null,"ID_ESTACION","DATOS,F"]
[null,"ID_PROYECTO",3572]
[null,"ID_METODOLOGIA",{"$f":"DIGITADOR!B4","v":872}]
[null,"ID_TEMATICAS",{"$f":"IF(C4=\"\",\"\",VLOOKUP(C4,'Otras referencias'!N7:P9,2,FALSE))","v":76}]
[null,"FECHA","DATOS,E"]
[null,"NOTAS","DIGITADOR,B,28"]
[null,"cantidad",303]
["parametro muestreo","ID_MUESTREO","DATOS,B","DATOS,B","DATOS,B","DATOS,B"]
[null,"ID_PARAMETRO",1169,1055,1170,127]
[null,"ID_METODOLOGIA",{"$f":"DIGITADOR!$B$4","v":872},{"$f":"DIGITADOR!$B$4","v":872},{"$f":"DIGITADOR!$B$4","v":872},{"$f":"DIGITADOR!$B$4","v":872}]
[null,"ID_UNIDAD_MEDIDA",100,100,100,100]
[null,"VALOR","DIGITADOR,B,14","DIGITADOR,B,7","DIGITADOR,B,13","DIGITADOR,B,12"]
[null,"cantidad",303,303,303,303]
["muestra","ID_MUESTRA","DATOS,D"]
[null,"ID_MUESTREO","DATOS,C"]
[null,"NOTAS","DATOS,N"]
[null,"ES_REPLICA",1]
[null,"cantidad",303]
["muestra variable","ID_PARAMETRO",1244,1006,1743,1744,1745,1746]
[null,"ID_METODOLOGIA",{"$f":"DIGITADOR!$B$4","v":872},{"$f":"DIGITADOR!$B$4","v":872},{"$f":"DIGITADOR!$B$4","v":872},{"$f":"DIGITADOR!$B$4","v":872},{"$f":"DIGITADOR!$B$4","v":872},{"$f":"DIGITADOR!$B$4","v":872}]
[null,"ID_UNIDAD_MEDIDA",100,11,67,4,4,4]
[null,"ID_MUESTRA","DATOS,D","DATOS,D","DATOS,D","DATOS,D","DATOS,D","DATOS,D"]
[null,"ID_METODO",null,615,908,909,909,909]
[null,"VALOR","DATOS,H","DATOS,I","DATOS,J","DATOS,K","DATOS,L","DATOS,M"]
[null,"QUALITY_FLAG",1,1,1,1,1,1]
[null,"PRECISION"]
[null,"cantidad",303,303,303,303,303,303]
["autoria","ID_FUNCIONARIO","DIGITADOR,B,2","DIGITADOR,B,18","DIGITADOR,B,20","DIGITADOR,B,22","DIGITADOR,B,24"]
[null,"ID_TAREA",5,"DIGITADOR,A,18","DIGITADOR,A,20","DIGITADOR,A,22","DIGITADOR,A,24"]
[null,"ORDEN",1,2,3,4,5]
[null,"FECHA","DIGITADOR,B,9","DATOS,E","DATOS,E","DATOS,E","DATOS,E"]
[null,"ID_MUESTREO","DATOS,B","DATOS,B","DATOS,B","DATOS,B","DATOS,B"]
[null,"ENTIDAD","DIGITADOR,B,6","DIGITADOR,B,6","DIGITADOR,B,6","DIGITADOR,B,6","DIGITADOR,B,6"]
[null,"cantidad",303,303,303,303,303]
[]
["REGISTROS GENERADOS",null,"REGISTROS CARGADOS",null,null,"PLAYAS ASPECTOS FISICOS - METODOLOGIA 872"]
["MUESTREOS",null,null,null,null,127,100,"PROYECTO_FINANCIO"]
["parametro muestreo",null,null,null,null,1006,11,"ANCHO"]
["muestra",null,null,null,null,1055,100,"VERSION_PLANTILLA"]
["muestra variable",null,null,null,null,1169,100,"URL_METADATO"]
["autoria",null,null,null,null,1170,100,"ARCHIVO_FUENTE"]
["registros correctos",null,null,null,null,1244,100,"ZONA_PLAYA"]
["Fecha de carga",null,null,null,null,1743,67,"PENDIENTE"]
["json error",null,null,null,null,1744,4,"PORCENTAJE_ARENA"]
["error",null,null,null,null,1745,4,"PORCENTAJE_ARENA_FINO"]
[null,null,null,null,null,1746,4,"PORCENTAJE_ARENA_GRAVA"]
[]
["Atributo","Descripción","Código"]
["Tipo Nodo","Estaciones",{"$f":"VLOOKUP($B$59,'[2]Otras referencias'!D23:F33,2,FALSE)","v":40}]
[]
[]
["CONFIGURACION REFERENTES"]
["Ruta de la API","Endpoint","Descripción"]
["URL - AGM Campo",{"$f":"CONCATENATE(\"parametros/agmcampo/\",$C$4,\"\")","v":"parametros/agmcampo/872"},"Listado de referentes AGM_CAMPO"]
["URL - Especies",{"$f":"IF($C$8=\"\",\"\",CONCATENATE(\"especies/filt/\",$C$9,\",\",$C$8,\"/\"))","v":"especies/filt/3572,872/"},"Especies por proyecto\n(No todos los proyectos tienen asociados una lista de especies)"]
["URL - Estaciones",{"$f":"CONCATENATE(\"estaciones/\", $C$59, \"/\",$C$9,\"\")","v":"estaciones/40/3572"},"Estaciones/parcelas por proyecto, cambia dependiendo del Tipo de Nodo, cuyo estado sea VIGENTE."]
["URL - Usuarios",{"$f":"CONCATENATE(\"parametros/usersByProject/\",$C$7,\"\")","v":"parametros/usersByProject/3572"},"Usuarios por proyecto."]
["URL - Entidades","estaciones/get-entidades","Listado de entidades."]
["Atributos de la API","codigo_in","nombre_in"]
["Rango de atributos de la API","B69:C70","nombre_in"]
["URL - Plantillas","plantillas/","Endpoint para la carga de datos al sistema."]

{"sheet":"DIGITADOR","index":2,"n_rows":38,"n_cols":4,"rows_kept":38,"cut":false,"hidden":false,"merged":[[37,1,37,2],[36,1,36,2],[29,0,29,1],[0,0,0,1],[15,3,15,9],[16,3,16,9],[1,3,9,9],[10,3,14,9],[7,0,8,0],[26,0,26,1]]}
["Recolección de Datos Monitoreo Aspectos Físicos de Playas KFW"]
["Código Digitador",{"$f":"IF(B3=\"\",\"\",INDEX(referentes!$O$2:$P$60,MATCH(DIGITADOR!B3,referentes!$P$2:$P$60,0),1))","v":""},null,"Recomendaciones generales: \n¡Precaución! No inserte Filas o Columnas.\nEn los casos en que falte un valor a ingresar que provenga de la hoja de referencias, informe para que el administrador del sistema haga las adiciones necesarias.\nEsta es una plantilla programada. Las columnas de color oscuro se llenan automaticamente, principalmente a partir de los contenidos de la hoja de referencias. \nNO UTILICE PUNTO Y COMA (;) en ningun campo, por ser el separador de variables (columnas). Las unidades de medida son las especificadas en la cabecera de la hoja.\nPara el correcto funcionamiento de la hoja debe estar activa la opcion de Excel de ejecutar macros (al abrir la hoja acepte la opcion habilitar macros, mensaje de Excel que aparece en la parte superior de la hoja en un recuadro amarillo). La extensión del archivo debe ser .xlsm.. \nAl finalizar, renombre el archivo de modo que su contenido sea claro, ejemplo:\nAAAAMMDD_tematica_sitio.xlsm. El nombre no debe tener espacios en blanco vocales tildadas o ñ."]
["Nombre del responsable"]
["Código Monitoreo",{"$f":"IF(B5=\"\",\"\",INDEX('Otras referencias'!$K$7:$L$9,MATCH(DIGITADOR!B5,'Otras referencias'!$L$7:$L$9,0),1))","v":872}]
["Monitoreo","Playas - ASPECTOS FISICOS"]
["Entidad"]
["Versión de la plantilla",{"$f":"'Registro de cambios'!$D$5","v":"20241005i"}]
["Fecha en la que ingresa los datos en esta hoja","DD/MM/AAAA"]
[null,"3000-12-12"]
[]
["Código del proyecto",{"$f":"IF(B12=\"\",\"\",INDEX('Otras referencias'!$D$7:$E$7,MATCH(DIGITADOR!B12,'Otras referencias'!$E$7:$E$7,0),1))","v":3572},null,"Previamente a iniciar el llenado de la plantilla, debe presionar el botón \"Descargar referentes\" para que los referentes de ésta plantilla sean actualizados. \nLuego de llenar completamente la plantilla verifique que:\na. No haya celdas con valores como \"#N/A\" o \"#¡REF!\".\nb. No se estén aplicando filtros en la hoja de datos.\nEnvíe la plantilla diligenciada al correo kevin.moreno@invemar.org.co"]
["Proyecto que financia","KFW"]
["Nombre del Archivo",{"$f":"MID(CELL(\"FILENAME\",N55),FIND(\"[\",CELL(\"FILENAME\",N55))+1,   FIND(\"]\",CELL(\"FILENAME\",N55))-FIND(\"[\",CELL(\"FILENAME\",N55))-1)","v":"KFW_PLAYAS_ASPECTOS_FISICOS_20241005i.xlsm"}]
["DOI Metadato"]
["Fuente Plantilla ","http://cinto.invemar.org.co/download/Plantillas_ARGOS_Plus/"]
[null,null,null,"Si requiere ayuda contacte a:\nKevin S. Moreno (kevin.moreno@invemar.org.co)"]
["ROLES INVOLUCRADOS","NOMBRE DE LA PERSONA",null,"El custodio de los datos es el único autorizado para distribuir este conjunto de datos. El observador y el digitador se comprometen a tomar las medidas necesarias para salvaguardar este conjunto de datos de modo que copia de los mismos no sean obtenidas y/o usadas por terceros no relacionados con el propósito para la cual se recolectó."]
[{"$f":"IF(A19=\"\",\"\",INDEX('Otras referencias'!$H$6:$I$8,MATCH(DIGITADOR!A19,'Otras referencias'!$I$6:$I$8,0),1))","v":""},{"$f":"IF(B19=\"\",\"\",INDEX(referentes!$O$2:$P$60,MATCH(DIGITADOR!B19,referentes!$P$2:$P$60,0),1))","v":""}]
[]
[{"$f":"IF(A21=\"\",\"\",INDEX('Otras referencias'!$H$6:$I$8,MATCH(DIGITADOR!A21,'Otras referencias'!$I$6:$I$8,0),1))","v":""},{"$f":"IF(B21=\"\",\"\",INDEX(referentes!$O$2:$P$60,MATCH(DIGITADOR!B21,referentes!$P$2:$P$60,0),1))","v":""}]
[]
[{"$f":"IF(A23=\"\",\"\",INDEX('Otras referencias'!$H$6:$I$8,MATCH(DIGITADOR!A23,'Otras referencias'!$I$6:$I$8,0),1))","v":""},{"$f":"IF(B23=\"\",\"\",INDEX(referentes!$O$2:$P$60,MATCH(DIGITADOR!B23,referentes!$P$2:$P$60,0),1))","v":""}]
[]
[{"$f":"IF(A25=\"\",\"\",INDEX('Otras referencias'!$H$6:$I$8,MATCH(DIGITADOR!A25,'Otras referencias'!$I$6:$I$8,0),1))","v":""},{"$f":"IF(B25=\"\",\"\",INDEX(referentes!$O$2:$P$60,MATCH(DIGITADOR!B25,referentes!$P$2:$P$60,0),1))","v":""}]
[]
[]
["ATRIBUTOS ADICIONALES"]
["Observaciones Generales"]
[]
["REGISTROS GENERADOS",null,"CARGADOS"]
["Muestreos",{"$f":"IF(configuracion!B47=\"\",\"\",configuracion!B47)","v":""},{"$f":"IF(configuracion!C47=\"\",\"\",configuracion!C47)","v":""}]
["Parámetros del muestreo",{"$f":"IF(configuracion!B48=\"\",\"\",configuracion!B48)","v":""},{"$f":"IF(configuracion!C48=\"\",\"\",configuracion!C48)","v":""}]
["Registros",{"$f":"IF(configuracion!B49=\"\",\"\",configuracion!B49)","v":""},{"$f":"IF(configuracion!C49=\"\",\"\",configuracion!C49)","v":""}]
["Variables",{"$f":"IF(configuracion!B50=\"\",\"\",configuracion!B50)","v":""},{"$f":"IF(configuracion!C50=\"\",\"\",configuracion!C50)","v":""}]
["Autorías",{"$f":"IF(configuracion!B51=\"\",\"\",configuracion!B51)","v":""},{"$f":"IF(configuracion!C51=\"\",\"\",configuracion!C51)","v":""}]
["Registros correctos",{"$f":"IF(configuracion!B52=\"\",\"\",configuracion!B52)","v":""},{"$f":"IF(configuracion!C52=\"\",\"\",configuracion!C52)","v":""}]
["json error",{"$f":"IF(C41=\"\",\"\",IF(C41=0,0,IF(B41-C41=0,C41,\"Fallaron \"&B41-C41&\" registros\")))","v":""}]
["error",{"$f":"IF(C42=\"\",\"\",IF(C42=0,0,IF(B42-C42=0,C42,\"Fallaron \"&B42-C42&\" registros\")))","v":""}]

{"sheet":"DATOS","index":3,"n_rows":303,"n_cols":14,"rows_kept":303,"cut":false,"hidden":false,"merged":[[0,4,0,6],[0,7,0,13]]}
[null,null,null,null,"MUESTREO",null,null,"MUESTRA"]
[{"$f":"TEXT(DIGITADOR!$B$9,\"yyyymmdd\")","v":"30001212"},"AGD MUESTREO","ID MUESTREO","ID MUESTRA","Fecha\n(DD/MM/AAAA)","ID ESTACION","Punto de Monitoreo","Zona de playa","Ancho (m)","Pendiente (°)","Porcentaje de \nArena (%)","Porcentaje de \nArenas Finos (%)","Porcentaje de \nArenas Gravas (%)","Observaciones"]
[null,{"$f":"IF(C3=\"\",\"\",IF(COUNTIF($C$3:C3, C3)>1, \"\", C3))","v":""},{"$f":"IF(E3=\"\",\"\",CONCATENATE(DIGITADOR!$M$1,E3,F3))","v":""},{"$f":"IF(C3=\"\",\"\",CONCATENATE(C3,ROW()-2))","v":""},null,{"$f":"IF(G3=\"\",\"\",VLOOKUP(G3,referentes!$J$2:$M$26,3,FALSE))","v":""},null,{"$f":"IF(ISNUMBER(SEARCH(\"1\",G3))=TRUE,\"4501\",\n  IF(ISNUMBER(SEARCH(\"2\",G3))=TRUE,\"4502\",\n  IF(ISNUMBER(SEARCH(\"3\",G3))=TRUE,\"4503\",\"\"))\n)","v":""}]
[null,{"$f":"IF(C4=\"\",\"\",IF(COUNTIF($C$3:C4, C4)>1, \"\", C4))","v":""},{"$f":"IF(E4=\"\",\"\",CONCATENATE(DIGITADOR!$M$1,E4,F4))","v":""},{"$f":"IF(C4=\"\",\"\",CONCATENATE(C4,ROW()-2))","v":""},null,{"$f":"IF(G4=\"\",\"\",VLOOKUP(G4,referentes!$J$2:$M$26,3,FALSE))","v":""},null,{"$f":"IF(ISNUMBER(SEARCH(\"1\",G4))=TRUE,\"4501\",\n  IF(ISNUMBER(SEARCH(\"2\",G4))=TRUE,\"4502\",\n  IF(ISNUMBER(SEARCH(\"3\",G4))=TRUE,\"4503\",\"\"))\n)","v":""}]
[null,{"$f":"IF(C5=\"\",\"\",IF(COUNTIF($C$3:C5, C5)>1, \"\", C5))","v":""},{"$f":"IF(E5=\"\",\"\",CONCATENATE(DIGITADOR!$M$1,E5,F5))","v":""},"",null,{"$f":"IF(G5=\"\",\"\",VLOOKUP(G5,referentes!$J$2:$M$26,3,FALSE))","v":""},null,""]
[null,{"$f":"IF(C6=\"\",\"\",IF(COUNTIF($C$3:C6, C6)>1, \"\", C6))","v":""},{"$f":"IF(E6=\"\",\"\",CONCATENATE(DIGITADOR!$M$1,E6,F6))","v":""},"",null,{"$f":"IF(G6=\"\",\"\",VLOOKUP(G6,referentes!$J$2:$M$26,3,FALSE))","v":""},null,""]
[null,{"$f":"IF(C7=\"\",\"\",IF(COUNTIF($C$3:C7, C7)>1, \"\", C7))","v":""},{"$f":"IF(E7=\"\",\"\",CONCATENATE(DIGITADOR!$M$1,E7,F7))","v":""},"",null,{"$f":"IF(G7=\"\",\"\",VLOOKUP(G7,referentes!$J$2:$M$26,3,FALSE))","v":""},null,""]
[null,{"$f":"IF(C8=\"\",\"\",IF(COUNTIF($C$3:C8, C8)>1, \"\", C8))","v":""},{"$f":"IF(E8=\"\",\"\",CONCATENATE(DIGITADOR!$M$1,E8,F8))","v":""},"",null,{"$f":"IF(G8=\"\",\"\",VLOOKUP(G8,referentes!$J$2:$M$26,3,FALSE))","v":""},null,""]
[null,{"$f":"IF(C9=\"\",\"\",IF(COUNTIF($C$3:C9, C9)>1, \"\", C9))","v":""},{"$f":"IF(E9=\"\",\"\",CONCATENATE(DIGITADOR!$M$1,E9,F9))","v":""},"",null,{"$f":"IF(G9=\"\",\"\",VLOOKUP(G9,referentes!$J$2:$M$26,3,FALSE))","v":""},null,""]
[null,{"$f":"IF(C10=\"\",\"\",IF(COUNTIF($C$3:C10, C10)>1, \"\", C10))","v":""},{"$f":"IF(E10=\"\",\"\",CONCATENATE(DIGITADOR!$M$1,E10,F10))","v":""},"",null,{"$f":"IF(G10=\"\",\"\",VLOOKUP(G10,referentes!$J$2:$M$26,3,FALSE))","v":""},null,""]
[null,{"$f":"IF(C11=\"\",\"\",IF(COUNTIF($C$3:C11, C11)>1, \"\", C11))","v":""},{"$f":"IF(E11=\"\",\"\",CONCATENATE(DIGITADOR!$M$1,E11,F11))","v":""},"",null,{"$f":"IF(G11=\"\",\"\",VLOOKUP(G11,referentes!$J$2:$M$26,3,FALSE))","v":""},null,""]
[null,{"$f":"IF(C12=\"\",\"\",IF(COUNTIF($C$3:C12, C12)>1, \"\", C12))","v":""},{"$f":"IF(E12=\"\",\"\",CONCATENATE(DIGITADOR!$M$1,E12,F12))","v":""},"",null,{"$f":"IF(G12=\"\",\"\",VLOOKUP(G12,referentes!$J$2:$M$26,3,FALSE))","v":""},null,""]
[null,{"$f":"IF(C13=\"\",\"\",IF(COUNTIF($C$3:C13, C13)>1, \"\", C13))","v":""},{"$f":"IF(E13=\"\",\"\",CONCATENATE(DIGITADOR!$M$1,E13,F13))","v":""},"",null,{"$f":"IF(G13=\"\",\"\",VLOOKUP(G13,referentes!$J$2:$M$26,3,FALSE))","v":""},null,""]
[null,{"$f":"IF(C14=\"\",\"\",IF(COUNTIF($C$3:C14, C14)>1, \"\", C14))","v":""},{"$f":"IF(E14=\"\",\"\",CONCATENATE(DIGITADOR!$M$1,E14,F14))","v":""},"",null,{"$f":"IF(G14=\"\",\"\",VLOOKUP(G14,referentes!$J$2:$M$26,3,FALSE))","v":""},null,""]
[null,{"$f":"IF(C15=\"\",\"\",IF(COUNTIF($C$3:C15, C15)>1, \"\", C15))","v":""},{"$f":"IF(E15=\"\",\"\",CONCATENATE(DIGITADOR!$M$1,E15,F15))","v":""},"",null,{"$f":"IF(G15=\"\",\"\",VLOOKUP(G15,referentes!$J$2:$M$26,3,FALSE))","v":""},null,""]
[null,{"$f":"IF(C16=\"\",\"\",IF(COUNTIF($C$3:C16, C16)>1, \"\", C16))","v":""},{"$f":"IF(E16=\"\",\"\",CONCATENATE(DIGITADOR!$M$1,E16,F16))","v":""},"",null,{"$f":"IF(G16=\"\",\"\",VLOOKUP(G16,referentes!$J$2:$M$26,3,FALSE))","v":""},null,""]
[null,{"$f":"IF(C17=\"\",\"\",IF(COUNTIF($C$3:C17, C17)>1, \"\", C17))","v":""},{"$f":"IF(E17=\"\",\"\",CONCATENATE(DIGITADOR!$M$1,E17,F17))","v":""},"",null,{"$f":"IF(G17=\"\",\"\",VLOOKUP(G17,referentes!$J$2:$M$26,3,FALSE))","v":""},null,""]
[null,{"$f":"IF(C18=\"\",\"\",IF(COUNTIF($C$3:C18, C18)>1, \"\", C18))","v":""},{"$f":"IF(E18=\"\",\"\",CONCATENATE(DIGITADOR!$M$1,E18,F18))","v":""},"",null,{"$f":"IF(G18=\"\",\"\",VLOOKUP(G18,referentes!$J$2:$M$26,3,FALSE))","v":""},null,""]
[null,{"$f":"IF(C19=\"\",\"\",IF(COUNTIF($C$3:C19, C19)>1, \"\", C19))","v":""},{"$f":"IF(E19=\"\",\"\",CONCATENATE(DIGITADOR!$M$1,E19,F19))","v":""},"",null,{"$f":"IF(G19=\"\",\"\",VLOOKUP(G19,referentes!$J$2:$M$26,3,FALSE))","v":""},null,""]
[null,{"$f":"IF(C20=\"\",\"\",IF(COUNTIF($C$3:C20, C20)>1, \"\", C20))","v":""},{"$f":"IF(E20=\"\",\"\",CONCATENATE(DIGITADOR!$M$1,E20,F20))","v":""},"",null,{"$f":"IF(G20=\"\",\"\",VLOOKUP(G20,referentes!$J$2:$M$26,3,FALSE))","v":""},null,""]
[null,{"$f":"IF(C21=\"\",\"\",IF(COUNTIF($C$3:C21, C21)>1, \"\", C21))","v":""},{"$f":"IF(E21=\"\",\"\",CONCATENATE(DIGITADOR!$M$1,E21,F21))","v":""},"",null,{"$f":"IF(G21=\"\",\"\",VLOOKUP(G21,referentes!$J$2:$M$26,3,FALSE))","v":""},null,""]
[null,{"$f":"IF(C22=\"\",\"\",IF(COUNTIF($C$3:C22, C22)>1, \"\", C22))","v":""},{"$f":"IF(E22=\"\",\"\",CONCATENATE(DIGITADOR!$M$1,E22,F22))","v":""},"",null,{"$f":"IF(G22=\"\",\"\",VLOOKUP(G22,referentes!$J$2:$M$26,3,FALSE))","v":""},null,""]
[null,{"$f":"IF(C23=\"\",\"\",IF(COUNTIF($C$3:C23, C23)>1, \"\", C23))","v":""},{"$f":"IF(E23=\"\",\"\",CONCATENATE(DIGITADOR!$M$1,E23,F23))","v":""},"",null,{"$f":"IF(G23=\"\",\"\",VLOOKUP(G23,referentes!$J$2:$M$26,3,FALSE))","v":""},null,""]
[null,{"$f":"IF(C24=\"\",\"\",IF(COUNTIF($C$3:C24, C24)>1, \"\", C24))","v":""},{"$f":"IF(E24=\"\",\"\",CONCATENATE(DIGITADOR!$M$1,E24,F24))","v":""},"",null,{"$f":"IF(G24=\"\",\"\",VLOOKUP(G24,referentes!$J$2:$M$26,3,FALSE))","v":""},null,""]
[null,{"$f":"IF(C25=\"\",\"\",IF(COUNTIF($C$3:C25, C25)>1, \"\", C25))","v":""},{"$f":"IF(E25=\"\",\"\",CONCATENATE(DIGITADOR!$M$1,E25,F25))","v":""},"",null,{"$f":"IF(G25=\"\",\"\",VLOOKUP(G25,referentes!$J$2:$M$26,3,FALSE))","v":""},null,""]
[null,{"$f":"IF(C26=\"\",\"\",IF(COUNTIF($C$3:C26, C26)>1, \"\", C26))","v":""},{"$f":"IF(E26=\"\",\"\",CONCATENATE(DIGITADOR!$M$1,E26,F26))","v":""},"",null,{"$f":"IF(G26=\"\",\"\",VLOOKUP(G26,referentes!$J$2:$M$26,3,FALSE))","v":""},null,""]
[null,{"$f":"IF(C27=\"\",\"\",IF(COUNTIF($C$3:C27, C27)>1, \"\", C27))","v":""},{"$f":"IF(E27=\"\",\"\",CONCATENATE(DIGITADOR!$M$1,E27,F27))","v":""},"",null,{"$f":"IF(G27=\"\",\"\",VLOOKUP(G27,referentes!$J$2:$M$26,3,FALSE))","v":""},null,""]
[null,{"$f":"IF(C28=\"\",\"\",IF(COUNTIF($C$3:C28, C28)>1, \"\", C28))","v":""},{"$f":"IF(E28=\"\",\"\",CONCATENATE(DIGITADOR!$M$1,E28,F28))","v":""},"",null,{"$f":"IF(G28=\"\",\"\",VLOOKUP(G28,referentes!$J$2:$M$26,3,FALSE))","v":""},null,""]
[null,{"$f":"IF(C29=\"\",\"\",IF(COUNTIF($C$3:C29, C29)>1, \"\", C29))","v":""},{"$f":"IF(E29=\"\",\"\",CONCATENATE(DIGITADOR!$M$1,E29,F29))","v":""},"",null,{"$f":"IF(G29=\"\",\"\",VLOOKUP(G29,referentes!$J$2:$M$26,3,FALSE))","v":""},null,""]
[null,{"$f":"IF(C30=\"\",\"\",IF(COUNTIF($C$3:C30, C30)>1, \"\", C30))","v":""},{"$f":"IF(E30=\"\",\"\",CONCATENATE(DIGITADOR!$M$1,E30,F30))","v":""},"",null,{"$f":"IF(G30=\"\",\"\",VLOOKUP(G30,referentes!$J$2:$M$26,3,FALSE))","v":""},null,""]
[null,{"$f":"IF(C31=\"\",\"\",IF(COUNTIF($C$3:C31, C31)>1, \"\", C31))","v":""},{"$f":"IF(E31=\"\",\"\",CONCATENATE(DIGITADOR!$M$1,E31,F31))","v":""},"",null,{"$f":"IF(G31=\"\",\"\",VLOOKUP(G31,referentes!$J$2:$M$26,3,FALSE))","v":""},null,""]
[null,{"$f":"IF(C32=\"\",\"\",IF(COUNTIF($C$3:C32, C32)>1, \"\", C32))","v":""},{"$f":"IF(E32=\"\",\"\",CONCATENATE(DIGITADOR!$M$1,E32,F32))","v":""},"",null,{"$f":"IF(G32=\"\",\"\",VLOOKUP(G32,referentes!$J$2:$M$26,3,FALSE))","v":""},null,""]
[null,{"$f":"IF(C33=\"\",\"\",IF(COUNTIF($C$3:C33, C33)>1, \"\", C33))","v":""},{"$f":"IF(E33=\"\",\"\",CONCATENATE(DIGITADOR!$M$1,E33,F33))","v":""},"",null,{"$f":"IF(G33=\"\",\"\",VLOOKUP(G33,referentes!$J$2:$M$26,3,FALSE))","v":""},null,""]
[null,{"$f":"IF(C34=\"\",\"\",IF(COUNTIF($C$3:C34, C34)>1, \"\", C34))","v":""},{"$f":"IF(E34=\"\",\"\",CONCATENATE(DIGITADOR!$M$1,E34,F34))","v":""},"",null,{"$f":"IF(G34=\"\",\"\",VLOOKUP(G34,referentes!$J$2:$M$26,3,FALSE))","v":""},null,""]
[null,{"$f":"IF(C35=\"\",\"\",IF(COUNTIF($C$3:C35, C35)>1, \"\", C35))","v":""},{"$f":"IF(E35=\"\",\"\",CONCATENATE(DIGITADOR!$M$1,E35,F35))","v":""},"",null,{"$f":"IF(G35=\"\",\"\",VLOOKUP(G35,referentes!$J$2:$M$26,3,FALSE))","v":""},null,""]
[null,{"$f":"IF(C36=\"\",\"\",IF(COUNTIF($C$3:C36, C36)>1, \"\", C36))","v":""},{"$f":"IF(E36=\"\",\"\",CONCATENATE(DIGITADOR!$M$1,E36,F36))","v":""},"",null,{"$f":"IF(G36=\"\",\"\",VLOOKUP(G36,referentes!$J$2:$M$26,3,FALSE))","v":""},null,""]
[null,{"$f":"IF(C37=\"\",\"\",IF(COUNTIF($C$3:C37, C37)>1, \"\", C37))","v":""},{"$f":"IF(E37=\"\",\"\",CONCATENATE(DIGITADOR!$M$1,E37,F37))","v":""},"",null,{"$f":"IF(G37=\"\",\"\",VLOOKUP(G37,referentes!$J$2:$M$26,3,FALSE))","v":""},null,""]
[null,{"$f":"IF(C38=\"\",\"\",IF(COUNTIF($C$3:C38, C38)>1, \"\", C38))","v":""},{"$f":"IF(E38=\"\",\"\",CONCATENATE(DIGITADOR!$M$1,E38,F38))","v":""},"",null,{"$f":"IF(G38=\"\",\"\",VLOOKUP(G38,referentes!$J$2:$M$26,3,FALSE))","v":""},null,""]
[null,{"$f":"IF(C39=\"\",\"\",IF(COUNTIF($C$3:C39, C39)>1, \"\", C39))","v":""},{"$f":"IF(E39=\"\",\"\",CONCATENATE(DIGITADOR!$M$1,E39,F39))","v":""},"",null,{"$f":"IF(G39=\"\",\"\",VLOOKUP(G39,referentes!$J$2:$M$26,3,FALSE))","v":""},null,""]
[null,{"$f":"IF(C40=\"\",\"\",IF(COUNTIF($C$3:C40, C40)>1, \"\", C40))","v":""},{"$f":"IF(E40=\"\",\"\",CONCATENATE(DIGITADOR!$M$1,E40,F40))","v":""},"",null,{"$f":"IF(G40=\"\",\"\",VLOOKUP(G40,referentes!$J$2:$M$26,3,FALSE))","v":""},null,""]
[null,{"$f":"IF(C41=\"\",\"\",IF(COUNTIF($C$3:C41, C41)>1, \"\", C41))","v":""},{"$f":"IF(E41=\"\",\"\",CONCATENATE(DIGITADOR!$M$1,E41,F41))","v":""},"",null,{"$f":"IF(G41=\"\",\"\",VLOOKUP(G41,referentes!$J$2:$M$26,3,FALSE))","v":""},null,""]
[null,{"$f":"IF(C42=\"\",\"\",IF(COUNTIF($C$3:C42, C42)>1, \"\", C42))","v":""},{"$f":"IF(E42=\"\",\"\",CONCATENATE(DIGITADOR!$M$1,E42,F42))","v":""},"",null,{"$f":"IF(G42=\"\",\"\",VLOOKUP(G42,referentes!$J$2:$M$26,3,FALSE))","v":""},null,""]
[null,{"$f":"IF(C43=\"\",\"\",IF(COUNTIF($C$3:C43, C43)>1, \"\", C43))","v":""},{"$f":"IF(E43=\"\",\"\",CONCATENATE(DIGITADOR!$M$1,E43,F43))","v":""},"",null,{"$f":"IF(G43=\"\",\"\",VLOOKUP(G43,referentes!$J$2:$M$26,3,FALSE))","v":""},null,""]
[null,{"$f":"IF(C44=\"\",\"\",IF(COUNTIF($C$3:C44, C44)>1, \"\", C44))","v":""},{"$f":"IF(E44=\"\",\"\",CONCATENATE(DIGITADOR!$M$1,E44,F44))","v":""},"",null,{"$f":"IF(G44=\"\",\"\",VLOOKUP(G44,referentes!$J$2:$M$26,3,FALSE))","v":""},null,""]
[null,{"$f":"IF(C45=\"\",\"\",IF(COUNTIF($C$3:C45, C45)>1, \"\", C45))","v":""},{"$f":"IF(E45=\"\",\"\",CONCATENATE(DIGITADOR!$M$1,E45,F45))","v":""},"",null,{"$f":"IF(G45=\"\",\"\",VLOOKUP(G45,referentes!$J$2:$M$26,3,FALSE))","v":""},null,""]
[null,{"$f":"IF(C46=\"\",\"\",IF(COUNTIF($C$3:C46, C46)>1, \"\", C46))","v":""},{"$f":"IF(E46=\"\",\"\",CONCATENATE(DIGITADOR!$M$1,E46,F46))","v":""},"",null,{"$f":"IF(G46=\"\",\"\",VLOOKUP(G46,referentes!$J$2:$M$26,3,FALSE))","v":""},null,""]
[null,{"$f":"IF(C47=\"\",\"\",IF(COUNTIF($C$3:C47, C47)>1, \"\", C47))","v":""},{"$f":"IF(E47=\"\",\"\",CONCATENATE(DIGITADOR!$M$1,E47,F47))","v":""},"",null,{"$f":"IF(G47=\"\",\"\",VLOOKUP(G47,referentes!$J$2:$M$26,3,FALSE))","v":""},null,""]
[null,{"$f":"IF(C48=\"\",\"\",IF(COUNTIF($C$3:C48, C48)>1, \"\", C48))","v":""},{"$f":"IF(E48=\"\",\"\",CONCATENATE(DIGITADOR!$M$1,E48,F48))","v":""},"",null,{"$f":"IF(G48=\"\",\"\",VLOOKUP(G48,referentes!$J$2:$M$26,3,FALSE))","v":""},null,""]
[null,{"$f":"IF(C49=\"\",\"\",IF(COUNTIF($C$3:C49, C49)>1, \"\", C49))","v":""},{"$f":"IF(E49=\"\",\"\",CONCATENATE(DIGITADOR!$M$1,E49,F49))","v":""},"",null,{"$f":"IF(G49=\"\",\"\",VLOOKUP(G49,referentes!$J$2:$M$26,3,FALSE))","v":""},null,""]
[null,{"$f":"IF(C50=\"\",\"\",IF(COUNTIF($C$3:C50, C50)>1, \"\", C50))","v":""},{"$f":"IF(E50=\"\",\"\",CONCATENATE(DIGITADOR!$M$1,E50,F50))","v":""},"",null,{"$f":"IF(G50=\"\",\"\",VLOOKUP(G50,referentes!$J$2:$M$26,3,FALSE))","v":""},null,""]
[null,{"$f":"IF(C51=\"\",\"\",IF(COUNTIF($C$3:C51, C51)>1, \"\", C51))","v":""},{"$f":"IF(E51=\"\",\"\",CONCATENATE(DIGITADOR!$M$1,E51,F51))","v":""},"",null,{"$f":"IF(G51=\"\",\"\",VLOOKUP(G51,referentes!$J$2:$M$26,3,FALSE))","v":""},null,""]
[null,{"$f":"IF(C52=\"\",\"\",IF(COUNTIF($C$3:C52, C52)>1, \"\", C52))","v":""},{"$f":"IF(E52=\"\",\"\",CONCATENATE(DIGITADOR!$M$1,E52,F52))","v":""},"",null,{"$f":"IF(G52=\"\",\"\",VLOOKUP(G52,referentes!$J$2:$M$26,3,FALSE))","v":""},null,""]
[null,{"$f":"IF(C53=\"\",\"\",IF(COUNTIF($C$3:C53, C53)>1, \"\", C53))","v":""},{"$f":"IF(E53=\"\",\"\",CONCATENATE(DIGITADOR!$M$1,E53,F53))","v":""},"",null,{"$f":"IF(G53=\"\",\"\",VLOOKUP(G53,referentes!$J$2:$M$26,3,FALSE))","v":""},null,""]
[null,{"$f":"IF(C54=\"\",\"\",IF(COUNTIF($C$3:C54, C54)>1, \"\", C54))","v":""},{"$f":"IF(E54=\"\",\"\",CONCATENATE(DIGITADOR!$M$1,E54,F54))","v":""},"",null,{"$f":"IF(G54=\"\",\"\",VLOOKUP(G54,referentes!$J$2:$M$26,3,FALSE))","v":""},null,""]
[null,{"$f":"IF(C55=\"\",\"\",IF(COUNTIF($C$3:C55, C55)>1, \"\", C55))","v":""},{"$f":"IF(E55=\"\",\"\",CONCATENATE(DIGITADOR!$M$1,E55,F55))","v":""},"",null,{"$f":"IF(G55=\"\",\"\",VLOOKUP(G55,referentes!$J$2:$M$26,3,FALSE))","v":""},null,""]
[null,{"$f":"IF(C56=\"\",\"\",IF(COUNTIF($C$3:C56, C56)>1, \"\", C56))","v":""},{"$f":"IF(E56=\"\",\"\",CONCATENATE(DIGITADOR!$M$1,E56,F56))","v":""},"",null,{"$f":"IF(G56=\"\",\"\",VLOOKUP(G56,referentes!$J$2:$M$26,3,FALSE))","v":""},null,""]
[null,{"$f":"IF(C57=\"\",\"\",IF(COUNTIF($C$3:C57, C57)>1, \"\", C57))","v":""},{"$f":"IF(E57=\"\",\"\",CONCATENATE(DIGITADOR!$M$1,E57,F57))","v":""},"",null,{"$f":"IF(G57=\"\",\"\",VLOOKUP(G57,referentes!$J$2:$M$26,3,FALSE))","v":""},null,""]
[null,{"$f":"IF(C58=\"\",\"\",IF(COUNTIF($C$3:C58, C58)>1, \"\", C58))","v":""},{"$f":"IF(E58=\"\",\"\",CONCATENATE(DIGITADOR!$M$1,E58,F58))","v":""},"",null,{"$f":"IF(G58=\"\",\"\",VLOOKUP(G58,referentes!$J$2:$M$26,3,FALSE))","v":""},null,""]
[null,{"$f":"IF(C59=\"\",\"\",IF(COUNTIF($C$3:C59, C59)>1, \"\", C59))","v":""},{"$f":"IF(E59=\"\",\"\",CONCATENATE(DIGITADOR!$M$1,E59,F59))","v":""},"",null,{"$f":"IF(G59=\"\",\"\",VLOOKUP(G59,referentes!$J$2:$M$26,3,FALSE))","v":""},null,""]
[null,{"$f":"IF(C60=\"\",\"\",IF(COUNTIF($C$3:C60, C60)>1, \"\", C60))","v":""},{"$f":"IF(E60=\"\",\"\",CONCATENATE(DIGITADOR!$M$1,E60,F60))","v":""},"",null,{"$f":"IF(G60=\"\",\"\",VLOOKUP(G60,referentes!$J$2:$M$26,3,FALSE))","v":""},null,""]
[null,{"$f":"IF(C61=\"\",\"\",IF(COUNTIF($C$3:C61, C61)>1, \"\", C61))","v":""},{"$f":"IF(E61=\"\",\"\",CONCATENATE(DIGITADOR!$M$1,E61,F61))","v":""},"",null,{"$f":"IF(G61=\"\",\"\",VLOOKUP(G61,referentes!$J$2:$M$26,3,FALSE))","v":""},null,""]
[null,{"$f":"IF(C62=\"\",\"\",IF(COUNTIF($C$3:C62, C62)>1, \"\", C62))","v":""},{"$f":"IF(E62=\"\",\"\",CONCATENATE(DIGITADOR!$M$1,E62,F62))","v":""},"",null,{"$f":"IF(G62=\"\",\"\",VLOOKUP(G62,referentes!$J$2:$M$26,3,FALSE))","v":""},null,""]
[null,{"$f":"IF(C63=\"\",\"\",IF(COUNTIF($C$3:C63, C63)>1, \"\", C63))","v":""},{"$f":"IF(E63=\"\",\"\",CONCATENATE(DIGITADOR!$M$1,E63,F63))","v":""},"",null,{"$f":"IF(G63=\"\",\"\",VLOOKUP(G63,referentes!$J$2:$M$26,3,FALSE))","v":""},null,""]
[null,{"$f":"IF(C64=\"\",\"\",IF(COUNTIF($C$3:C64, C64)>1, \"\", C64))","v":""},{"$f":"IF(E64=\"\",\"\",CONCATENATE(DIGITADOR!$M$1,E64,F64))","v":""},"",null,{"$f":"IF(G64=\"\",\"\",VLOOKUP(G64,referentes!$J$2:$M$26,3,FALSE))","v":""},null,""]
[null,{"$f":"IF(C65=\"\",\"\",IF(COUNTIF($C$3:C65, C65)>1, \"\", C65))","v":""},{"$f":"IF(E65=\"\",\"\",CONCATENATE(DIGITADOR!$M$1,E65,F65))","v":""},"",null,{"$f":"IF(G65=\"\",\"\",VLOOKUP(G65,referentes!$J$2:$M$26,3,FALSE))","v":""},null,""]
[null,{"$f":"IF(C66=\"\",\"\",IF(COUNTIF($C$3:C66, C66)>1, \"\", C66))","v":""},{"$f":"IF(E66=\"\",\"\",CONCATENATE(DIGITADOR!$M$1,E66,F66))","v":""},"",null,{"$f":"IF(G66=\"\",\"\",VLOOKUP(G66,referentes!$J$2:$M$26,3,FALSE))","v":""},null,""]
[null,{"$f":"IF(C67=\"\",\"\",IF(COUNTIF($C$3:C67, C67)>1, \"\", C67))","v":""},{"$f":"IF(E67=\"\",\"\",CONCATENATE(DIGITADOR!$M$1,E67,F67))","v":""},"",null,{"$f":"IF(G67=\"\",\"\",VLOOKUP(G67,referentes!$J$2:$M$26,3,FALSE))","v":""},null,""]
[null,{"$f":"IF(C68=\"\",\"\",IF(COUNTIF($C$3:C68, C68)>1, \"\", C68))","v":""},{"$f":"IF(E68=\"\",\"\",CONCATENATE(DIGITADOR!$M$1,E68,F68))","v":""},{"$f":"IF(C68=\"\",\"\",CONCATENATE(C68,ROW()-2))","v":""},null,{"$f":"IF(G68=\"\",\"\",VLOOKUP(G68,referentes!$J$2:$M$26,3,FALSE))","v":""},null,{"$f":"IF(ISNUMBER(SEARCH(\"1\",G68))=TRUE,\"4501\",\n  IF(ISNUMBER(SEARCH(\"2\",G68))=TRUE,\"4502\",\n  IF(ISNUMBER(SEARCH(\"3\",G68))=TRUE,\"4503\",\"\"))\n)","v":""}]
[null,{"$f":"IF(C69=\"\",\"\",IF(COUNTIF($C$3:C69, C69)>1, \"\", C69))","v":""},{"$f":"IF(E69=\"\",\"\",CONCATENATE(DIGITADOR!$M$1,E69,F69))","v":""},"",null,{"$f":"IF(G69=\"\",\"\",VLOOKUP(G69,referentes!$J$2:$M$26,3,FALSE))","v":""},null,""]
[null,{"$f":"IF(C70=\"\",\"\",IF(COUNTIF($C$3:C70, C70)>1, \"\", C70))","v":""},{"$f":"IF(E70=\"\",\"\",CONCATENATE(DIGITADOR!$M$1,E70,F70))","v":""},"",null,{"$f":"IF(G70=\"\",\"\",VLOOKUP(G70,referentes!$J$2:$M$26,3,FALSE))","v":""},null,""]
[null,{"$f":"IF(C71=\"\",\"\",IF(COUNTIF($C$3:C71, C71)>1, \"\", C71))","v":""},{"$f":"IF(E71=\"\",\"\",CONCATENATE(DIGITADOR!$M$1,E71,F71))","v":""},"",null,{"$f":"IF(G71=\"\",\"\",VLOOKUP(G71,referentes!$J$2:$M$26,3,FALSE))","v":""},null,""]
[null,{"$f":"IF(C72=\"\",\"\",IF(COUNTIF($C$3:C72, C72)>1, \"\", C72))","v":""},{"$f":"IF(E72=\"\",\"\",CONCATENATE(DIGITADOR!$M$1,E72,F72))","v":""},"",null,{"$f":"IF(G72=\"\",\"\",VLOOKUP(G72,referentes!$J$2:$M$26,3,FALSE))","v":""},null,""]
[null,{"$f":"IF(C73=\"\",\"\",IF(COUNTIF($C$3:C73, C73)>1, \"\", C73))","v":""},{"$f":"IF(E73=\"\",\"\",CONCATENATE(DIGITADOR!$M$1,E73,F73))","v":""},"",null,{"$f":"IF(G73=\"\",\"\",VLOOKUP(G73,referentes!$J$2:$M$26,3,FALSE))","v":""},null,""]
[null,{"$f":"IF(C74=\"\",\"\",IF(COUNTIF($C$3:C74, C74)>1, \"\", C74))","v":""},{"$f":"IF(E74=\"\",\"\",CONCATENATE(DIGITADOR!$M$1,E74,F74))","v":""},"",null,{"$f":"IF(G74=\"\",\"\",VLOOKUP(G74,referentes!$J$2:$M$26,3,FALSE))","v":""},null,""]
[null,{"$f":"IF(C75=\"\",\"\",IF(COUNTIF($C$3:C75, C75)>1, \"\", C75))","v":""},{"$f":"IF(E75=\"\",\"\",CONCATENATE(DIGITADOR!$M$1,E75,F75))","v":""},"",null,{"$f":"IF(G75=\"\",\"\",VLOOKUP(G75,referentes!$J$2:$M$26,3,FALSE))","v":""},null,""]
[null,{"$f":"IF(C76=\"\",\"\",IF(COUNTIF($C$3:C76, C76)>1, \"\", C76))","v":""},{"$f":"IF(E76=\"\",\"\",CONCATENATE(DIGITADOR!$M$1,E76,F76))","v":""},"",null,{"$f":"IF(G76=\"\",\"\",VLOOKUP(G76,referentes!$J$2:$M$26,3,FALSE))","v":""},null,""]
[null,{"$f":"IF(C77=\"\",\"\",IF(COUNTIF($C$3:C77, C77)>1, \"\", C77))","v":""},{"$f":"IF(E77=\"\",\"\",CONCATENATE(DIGITADOR!$M$1,E77,F77))","v":""},"",null,{"$f":"IF(G77=\"\",\"\",VLOOKUP(G77,referentes!$J$2:$M$26,3,FALSE))","v":""},null,""]
[null,{"$f":"IF(C78=\"\",\"\",IF(COUNTIF($C$3:C78, C78)>1, \"\", C78))","v":""},{"$f":"IF(E78=\"\",\"\",CONCATENATE(DIGITADOR!$M$1,E78,F78))","v":""},"",null,{"$f":"IF(G78=\"\",\"\",VLOOKUP(G78,referentes!$J$2:$M$26,3,FALSE))","v":""},null,""]
[null,{"$f":"IF(C79=\"\",\"\",IF(COUNTIF($C$3:C79, C79)>1, \"\", C79))","v":""},{"$f":"IF(E79=\"\",\"\",CONCATENATE(DIGITADOR!$M$1,E79,F79))","v":""},"",null,{"$f":"IF(G79=\"\",\"\",VLOOKUP(G79,referentes!$J$2:$M$26,3,FALSE))","v":""},null,""]
[null,{"$f":"IF(C80=\"\",\"\",IF(COUNTIF($C$3:C80, C80)>1, \"\", C80))","v":""},{"$f":"IF(E80=\"\",\"\",CONCATENATE(DIGITADOR!$M$1,E80,F80))","v":""},"",null,{"$f":"IF(G80=\"\",\"\",VLOOKUP(G80,referentes!$J$2:$M$26,3,FALSE))","v":""},null,""]
[null,{"$f":"IF(C81=\"\",\"\",IF(COUNTIF($C$3:C81, C81)>1, \"\", C81))","v":""},{"$f":"IF(E81=\"\",\"\",CONCATENATE(DIGITADOR!$M$1,E81,F81))","v":""},"",null,{"$f":"IF(G81=\"\",\"\",VLOOKUP(G81,referentes!$J$2:$M$26,3,FALSE))","v":""},null,""]
[null,{"$f":"IF(C82=\"\",\"\",IF(COUNTIF($C$3:C82, C82)>1, \"\", C82))","v":""},{"$f":"IF(E82=\"\",\"\",CONCATENATE(DIGITADOR!$M$1,E82,F82))","v":""},"",null,{"$f":"IF(G82=\"\",\"\",VLOOKUP(G82,referentes!$J$2:$M$26,3,FALSE))","v":""},null,""]
[null,{"$f":"IF(C83=\"\",\"\",IF(COUNTIF($C$3:C83, C83)>1, \"\", C83))","v":""},{"$f":"IF(E83=\"\",\"\",CONCATENATE(DIGITADOR!$M$1,E83,F83))","v":""},"",null,{"$f":"IF(G83=\"\",\"\",VLOOKUP(G83,referentes!$J$2:$M$26,3,FALSE))","v":""},null,""]
[null,{"$f":"IF(C84=\"\",\"\",IF(COUNTIF($C$3:C84, C84)>1, \"\", C84))","v":""},{"$f":"IF(E84=\"\",\"\",CONCATENATE(DIGITADOR!$M$1,E84,F84))","v":""},"",null,{"$f":"IF(G84=\"\",\"\",VLOOKUP(G84,referentes!$J$2:$M$26,3,FALSE))","v":""},null,""]
[null,{"$f":"IF(C85=\"\",\"\",IF(COUNTIF($C$3:C85, C85)>1, \"\", C85))","v":""},{"$f":"IF(E85=\"\",\"\",CONCATENATE(DIGITADOR!$M$1,E85,F85))","v":""},"",null,{"$f":"IF(G85=\"\",\"\",VLOOKUP(G85,referentes!$J$2:$M$26,3,FALSE))","v":""},null,""]
[null,{"$f":"IF(C86=\"\",\"\",IF(COUNTIF($C$3:C86, C86)>1, \"\", C86))","v":""},{"$f":"IF(E86=\"\",\"\",CONCATENATE(DIGITADOR!$M$1,E86,F86))","v":""},"",null,{"$f":"IF(G86=\"\",\"\",VLOOKUP(G86,referentes!$J$2:$M$26,3,FALSE))","v":""},null,""]
[null,{"$f":"IF(C87=\"\",\"\",IF(COUNTIF($C$3:C87, C87)>1, \"\", C87))","v":""},{"$f":"IF(E87=\"\",\"\",CONCATENATE(DIGITADOR!$M$1,E87,F87))","v":""},"",null,{"$f":"IF(G87=\"\",\"\",VLOOKUP(G87,referentes!$J$2:$M$26,3,FALSE))","v":""},null,""]
[null,{"$f":"IF(C88=\"\",\"\",IF(COUNTIF($C$3:C88, C88)>1, \"\", C88))","v":""},{"$f":"IF(E88=\"\",\"\",CONCATENATE(DIGITADOR!$M$1,E88,F88))","v":""},"",null,{"$f":"IF(G88=\"\",\"\",VLOOKUP(G88,referentes!$J$2:$M$26,3,FALSE))","v":""},null,""]
[null,{"$f":"IF(C89=\"\",\"\",IF(COUNTIF($C$3:C89, C89)>1, \"\", C89))","v":""},{"$f":"IF(E89=\"\",\"\",CONCATENATE(DIGITADOR!$M$1,E89,F89))","v":""},"",null,{"$f":"IF(G89=\"\",\"\",VLOOKUP(G89,referentes!$J$2:$M$26,3,FALSE))","v":""},null,""]
[null,{"$f":"IF(C90=\"\",\"\",IF(COUNTIF($C$3:C90, C90)>1, \"\", C90))","v":""},{"$f":"IF(E90=\"\",\"\",CONCATENATE(DIGITADOR!$M$1,E90,F90))","v":""},"",null,{"$f":"IF(G90=\"\",\"\",VLOOKUP(G90,referentes!$J$2:$M$26,3,FALSE))","v":""},null,""]
[null,{"$f":"IF(C91=\"\",\"\",IF(COUNTIF($C$3:C91, C91)>1, \"\", C91))","v":""},{"$f":"IF(E91=\"\",\"\",CONCATENATE(DIGITADOR!$M$1,E91,F91))","v":""},"",null,{"$f":"IF(G91=\"\",\"\",VLOOKUP(G91,referentes!$J$2:$M$26,3,FALSE))","v":""},null,""]
[null,{"$f":"IF(C92=\"\",\"\",IF(COUNTIF($C$3:C92, C92)>1, \"\", C92))","v":""},{"$f":"IF(E92=\"\",\"\",CONCATENATE(DIGITADOR!$M$1,E92,F92))","v":""},"",null,{"$f":"IF(G92=\"\",\"\",VLOOKUP(G92,referentes!$J$2:$M$26,3,FALSE))","v":""},null,""]
[null,{"$f":"IF(C93=\"\",\"\",IF(COUNTIF($C$3:C93, C93)>1, \"\", C93))","v":""},{"$f":"IF(E93=\"\",\"\",CONCATENATE(DIGITADOR!$M$1,E93,F93))","v":""},"",null,{"$f":"IF(G93=\"\",\"\",VLOOKUP(G93,referentes!$J$2:$M$26,3,FALSE))","v":""},null,""]
[null,{"$f":"IF(C94=\"\",\"\",IF(COUNTIF($C$3:C94, C94)>1, \"\", C94))","v":""},{"$f":"IF(E94=\"\",\"\",CONCATENATE(DIGITADOR!$M$1,E94,F94))","v":""},"",null,{"$f":"IF(G94=\"\",\"\",VLOOKUP(G94,referentes!$J$2:$M$26,3,FALSE))","v":""},null,""]
[null,{"$f":"IF(C95=\"\",\"\",IF(COUNTIF($C$3:C95, C95)>1, \"\", C95))","v":""},{"$f":"IF(E95=\"\",\"\",CONCATENATE(DIGITADOR!$M$1,E95,F95))","v":""},"",null,{"$f":"IF(G95=\"\",\"\",VLOOKUP(G95,referentes!$J$2:$M$26,3,FALSE))","v":""},null,""]
[null,{"$f":"IF(C96=\"\",\"\",IF(COUNTIF($C$3:C96, C96)>1, \"\", C96))","v":""},{"$f":"IF(E96=\"\",\"\",CONCATENATE(DIGITADOR!$M$1,E96,F96))","v":""},"",null,{"$f":"IF(G96=\"\",\"\",VLOOKUP(G96,referentes!$J$2:$M$26,3,FALSE))","v":""},null,""]
[null,{"$f":"IF(C97=\"\",\"\",IF(COUNTIF($C$3:C97, C97)>1, \"\", C97))","v":""},{"$f":"IF(E97=\"\",\"\",CONCATENATE(DIGITADOR!$M$1,E97,F97))","v":""},"",null,{"$f":"IF(G97=\"\",\"\",VLOOKUP(G97,referentes!$J$2:$M$26,3,FALSE))","v":""},null,""]
[null,{"$f":"IF(C98=\"\",\"\",IF(COUNTIF($C$3:C98, C98)>1, \"\", C98))","v":""},{"$f":"IF(E98=\"\",\"\",CONCATENATE(DIGITADOR!$M$1,E98,F98))","v":""},"",null,{"$f":"IF(G98=\"\",\"\",VLOOKUP(G98,referentes!$J$2:$M$26,3,FALSE))","v":""},null,""]
[null,{"$f":"IF(C99=\"\",\"\",IF(COUNTIF($C$3:C99, C99)>1, \"\", C99))","v":""},{"$f":"IF(E99=\"\",\"\",CONCATENATE(DIGITADOR!$M$1,E99,F99))","v":""},"",null,{"$f":"IF(G99=\"\",\"\",VLOOKUP(G99,referentes!$J$2:$M$26,3,FALSE))","v":""},null,""]
[null,{"$f":"IF(C100=\"\",\"\",IF(COUNTIF($C$3:C100, C100)>1, \"\", C100))","v":""},{"$f":"IF(E100=\"\",\"\",CONCATENATE(DIGITADOR!$M$1,E100,F100))","v":""},"",null,{"$f":"IF(G100=\"\",\"\",VLOOKUP(G100,referentes!$J$2:$M$26,3,FALSE))","v":""},null,""]
[null,{"$f":"IF(C101=\"\",\"\",IF(COUNTIF($C$3:C101, C101)>1, \"\", C101))","v":""},{"$f":"IF(E101=\"\",\"\",CONCATENATE(DIGITADOR!$M$1,E101,F101))","v":""},"",null,{"$f":"IF(G101=\"\",\"\",VLOOKUP(G101,referentes!$J$2:$M$26,3,FALSE))","v":""},null,""]
[null,{"$f":"IF(C102=\"\",\"\",IF(COUNTIF($C$3:C102, C102)>1, \"\", C102))","v":""},{"$f":"IF(E102=\"\",\"\",CONCATENATE(DIGITADOR!$M$1,E102,F102))","v":""},"",null,{"$f":"IF(G102=\"\",\"\",VLOOKUP(G102,referentes!$J$2:$M$26,3,FALSE))","v":""},null,""]
[null,{"$f":"IF(C103=\"\",\"\",IF(COUNTIF($C$3:C103, C103)>1, \"\", C103))","v":""},{"$f":"IF(E103=\"\",\"\",CONCATENATE(DIGITADOR!$M$1,E103,F103))","v":""},"",null,{"$f":"IF(G103=\"\",\"\",VLOOKUP(G103,referentes!$J$2:$M$26,3,FALSE))","v":""},null,""]
[null,{"$f":"IF(C104=\"\",\"\",IF(COUNTIF($C$3:C104, C104)>1, \"\", C104))","v":""},{"$f":"IF(E104=\"\",\"\",CONCATENATE(DIGITADOR!$M$1,E104,F104))","v":""},"",null,{"$f":"IF(G104=\"\",\"\",VLOOKUP(G104,referentes!$J$2:$M$26,3,FALSE))","v":""},null,""]
[null,{"$f":"IF(C105=\"\",\"\",IF(COUNTIF($C$3:C105, C105)>1, \"\", C105))","v":""},{"$f":"IF(E105=\"\",\"\",CONCATENATE(DIGITADOR!$M$1,E105,F105))","v":""},"",null,{"$f":"IF(G105=\"\",\"\",VLOOKUP(G105,referentes!$J$2:$M$26,3,FALSE))","v":""},null,""]
[null,{"$f":"IF(C106=\"\",\"\",IF(COUNTIF($C$3:C106, C106)>1, \"\", C106))","v":""},{"$f":"IF(E106=\"\",\"\",CONCATENATE(DIGITADOR!$M$1,E106,F106))","v":""},"",null,{"$f":"IF(G106=\"\",\"\",VLOOKUP(G106,referentes!$J$2:$M$26,3,FALSE))","v":""},null,""]
[null,{"$f":"IF(C107=\"\",\"\",IF(COUNTIF($C$3:C107, C107)>1, \"\", C107))","v":""},{"$f":"IF(E107=\"\",\"\",CONCATENATE(DIGITADOR!$M$1,E107,F107))","v":""},"",null,{"$f":"IF(G107=\"\",\"\",VLOOKUP(G107,referentes!$J$2:$M$26,3,FALSE))","v":""},null,""]
[null,{"$f":"IF(C108=\"\",\"\",IF(COUNTIF($C$3:C108, C108)>1, \"\", C108))","v":""},{"$f":"IF(E108=\"\",\"\",CONCATENATE(DIGITADOR!$M$1,E108,F108))","v":""},"",null,{"$f":"IF(G108=\"\",\"\",VLOOKUP(G108,referentes!$J$2:$M$26,3,FALSE))","v":""},null,""]
[null,{"$f":"IF(C109=\"\",\"\",IF(COUNTIF($C$3:C109, C109)>1, \"\", C109))","v":""},{"$f":"IF(E109=\"\",\"\",CONCATENATE(DIGITADOR!$M$1,E109,F109))","v":""},"",null,{"$f":"IF(G109=\"\",\"\",VLOOKUP(G109,referentes!$J$2:$M$26,3,FALSE))","v":""},null,""]
[null,{"$f":"IF(C110=\"\",\"\",IF(COUNTIF($C$3:C110, C110)>1, \"\", C110))","v":""},{"$f":"IF(E110=\"\",\"\",CONCATENATE(DIGITADOR!$M$1,E110,F110))","v":""},"",null,{"$f":"IF(G110=\"\",\"\",VLOOKUP(G110,referentes!$J$2:$M$26,3,FALSE))","v":""},null,""]
[null,{"$f":"IF(C111=\"\",\"\",IF(COUNTIF($C$3:C111, C111)>1, \"\", C111))","v":""},{"$f":"IF(E111=\"\",\"\",CONCATENATE(DIGITADOR!$M$1,E111,F111))","v":""},"",null,{"$f":"IF(G111=\"\",\"\",VLOOKUP(G111,referentes!$J$2:$M$26,3,FALSE))","v":""},null,""]
[null,{"$f":"IF(C112=\"\",\"\",IF(COUNTIF($C$3:C112, C112)>1, \"\", C112))","v":""},{"$f":"IF(E112=\"\",\"\",CONCATENATE(DIGITADOR!$M$1,E112,F112))","v":""},"",null,{"$f":"IF(G112=\"\",\"\",VLOOKUP(G112,referentes!$J$2:$M$26,3,FALSE))","v":""},null,""]
[null,{"$f":"IF(C113=\"\",\"\",IF(COUNTIF($C$3:C113, C113)>1, \"\", C113))","v":""},{"$f":"IF(E113=\"\",\"\",CONCATENATE(DIGITADOR!$M$1,E113,F113))","v":""},"",null,{"$f":"IF(G113=\"\",\"\",VLOOKUP(G113,referentes!$J$2:$M$26,3,FALSE))","v":""},null,""]
[null,{"$f":"IF(C114=\"\",\"\",IF(COUNTIF($C$3:C114, C114)>1, \"\", C114))","v":""},{"$f":"IF(E114=\"\",\"\",CONCATENATE(DIGITADOR!$M$1,E114,F114))","v":""},"",null,{"$f":"IF(G114=\"\",\"\",VLOOKUP(G114,referentes!$J$2:$M$26,3,FALSE))","v":""},null,""]
[null,{"$f":"IF(C115=\"\",\"\",IF(COUNTIF($C$3:C115, C115)>1, \"\", C115))","v":""},{"$f":"IF(E115=\"\",\"\",CONCATENATE(DIGITADOR!$M$1,E115,F115))","v":""},"",null,{"$f":"IF(G115=\"\",\"\",VLOOKUP(G115,referentes!$J$2:$M$26,3,FALSE))","v":""},null,""]
[null,{"$f":"IF(C116=\"\",\"\",IF(COUNTIF($C$3:C116, C116)>1, \"\", C116))","v":""},{"$f":"IF(E116=\"\",\"\",CONCATENATE(DIGITADOR!$M$1,E116,F116))","v":""},"",null,{"$f":"IF(G116=\"\",\"\",VLOOKUP(G116,referentes!$J$2:$M$26,3,FALSE))","v":""},null,""]
[null,{"$f":"IF(C117=\"\",\"\",IF(COUNTIF($C$3:C117, C117)>1, \"\", C117))","v":""},{"$f":"IF(E117=\"\",\"\",CONCATENATE(DIGITADOR!$M$1,E117,F117))","v":""},"",null,{"$f":"IF(G117=\"\",\"\",VLOOKUP(G117,referentes!$J$2:$M$26,3,FALSE))","v":""},null,""]
[null,{"$f":"IF(C118=\"\",\"\",IF(COUNTIF($C$3:C118, C118)>1, \"\", C118))","v":""},{"$f":"IF(E118=\"\",\"\",CONCATENATE(DIGITADOR!$M$1,E118,F118))","v":""},"",null,{"$f":"IF(G118=\"\",\"\",VLOOKUP(G118,referentes!$J$2:$M$26,3,FALSE))","v":""},null,""]
[null,{"$f":"IF(C119=\"\",\"\",IF(COUNTIF($C$3:C119, C119)>1, \"\", C119))","v":""},{"$f":"IF(E119=\"\",\"\",CONCATENATE(DIGITADOR!$M$1,E119,F119))","v":""},"",null,{"$f":"IF(G119=\"\",\"\",VLOOKUP(G119,referentes!$J$2:$M$26,3,FALSE))","v":""},null,""]
[null,{"$f":"IF(C120=\"\",\"\",IF(COUNTIF($C$3:C120, C120)>1, \"\", C120))","v":""},{"$f":"IF(E120=\"\",\"\",CONCATENATE(DIGITADOR!$M$1,E120,F120))","v":""},"",null,{"$f":"IF(G120=\"\",\"\",VLOOKUP(G120,referentes!$J$2:$M$26,3,FALSE))","v":""},null,""]
[null,{"$f":"IF(C121=\"\",\"\",IF(COUNTIF($C$3:C121, C121)>1, \"\", C121))","v":""},{"$f":"IF(E121=\"\",\"\",CONCATENATE(DIGITADOR!$M$1,E121,F121))","v":""},"",null,{"$f":"IF(G121=\"\",\"\",VLOOKUP(G121,referentes!$J$2:$M$26,3,FALSE))","v":""},null,""]
[null,{"$f":"IF(C122=\"\",\"\",IF(COUNTIF($C$3:C122, C122)>1, \"\", C122))","v":""},{"$f":"IF(E122=\"\",\"\",CONCATENATE(DIGITADOR!$M$1,E122,F122))","v":""},"",null,{"$f":"IF(G122=\"\",\"\",VLOOKUP(G122,referentes!$J$2:$M$26,3,FALSE))","v":""},null,""]
[null,{"$f":"IF(C123=\"\",\"\",IF(COUNTIF($C$3:C123, C123)>1, \"\", C123))","v":""},{"$f":"IF(E123=\"\",\"\",CONCATENATE(DIGITADOR!$M$1,E123,F123))","v":""},"",null,{"$f":"IF(G123=\"\",\"\",VLOOKUP(G123,referentes!$J$2:$M$26,3,FALSE))","v":""},null,""]
[null,{"$f":"IF(C124=\"\",\"\",IF(COUNTIF($C$3:C124, C124)>1, \"\", C124))","v":""},{"$f":"IF(E124=\"\",\"\",CONCATENATE(DIGITADOR!$M$1,E124,F124))","v":""},"",null,{"$f":"IF(G124=\"\",\"\",VLOOKUP(G124,referentes!$J$2:$M$26,3,FALSE))","v":""},null,""]
[null,{"$f":"IF(C125=\"\",\"\",IF(COUNTIF($C$3:C125, C125)>1, \"\", C125))","v":""},{"$f":"IF(E125=\"\",\"\",CONCATENATE(DIGITADOR!$M$1,E125,F125))","v":""},"",null,{"$f":"IF(G125=\"\",\"\",VLOOKUP(G125,referentes!$J$2:$M$26,3,FALSE))","v":""},null,""]
[null,{"$f":"IF(C126=\"\",\"\",IF(COUNTIF($C$3:C126, C126)>1, \"\", C126))","v":""},{"$f":"IF(E126=\"\",\"\",CONCATENATE(DIGITADOR!$M$1,E126,F126))","v":""},"",null,{"$f":"IF(G126=\"\",\"\",VLOOKUP(G126,referentes!$J$2:$M$26,3,FALSE))","v":""},null,""]
[null,{"$f":"IF(C127=\"\",\"\",IF(COUNTIF($C$3:C127, C127)>1, \"\", C127))","v":""},{"$f":"IF(E127=\"\",\"\",CONCATENATE(DIGITADOR!$M$1,E127,F127))","v":""},"",null,{"$f":"IF(G127=\"\",\"\",VLOOKUP(G127,referentes!$J$2:$M$26,3,FALSE))","v":""},null,""]
[null,{"$f":"IF(C128=\"\",\"\",IF(COUNTIF($C$3:C128, C128)>1, \"\", C128))","v":""},{"$f":"IF(E128=\"\",\"\",CONCATENATE(DIGITADOR!$M$1,E128,F128))","v":""},"",null,{"$f":"IF(G128=\"\",\"\",VLOOKUP(G128,referentes!$J$2:$M$26,3,FALSE))","v":""},null,""]
[null,{"$f":"IF(C129=\"\",\"\",IF(COUNTIF($C$3:C129, C129)>1, \"\", C129))","v":""},{"$f":"IF(E129=\"\",\"\",CONCATENATE(DIGITADOR!$M$1,E129,F129))","v":""},"",null,{"$f":"IF(G129=\"\",\"\",VLOOKUP(G129,referentes!$J$2:$M$26,3,FALSE))","v":""},null,""]
[null,{"$f":"IF(C130=\"\",\"\",IF(COUNTIF($C$3:C130, C130)>1, \"\", C130))","v":""},{"$f":"IF(E130=\"\",\"\",CONCATENATE(DIGITADOR!$M$1,E130,F130))","v":""},"",null,{"$f":"IF(G130=\"\",\"\",VLOOKUP(G130,referentes!$J$2:$M$26,3,FALSE))","v":""},null,""]
[null,{"$f":"IF(C131=\"\",\"\",IF(COUNTIF($C$3:C131, C131)>1, \"\", C131))","v":""},{"$f":"IF(E131=\"\",\"\",CONCATENATE(DIGITADOR!$M$1,E131,F131))","v":""},"",null,{"$f":"IF(G131=\"\",\"\",VLOOKUP(G131,referentes!$J$2:$M$26,3,FALSE))","v":""},null,""]
[null,{"$f":"IF(C132=\"\",\"\",IF(COUNTIF($C$3:C132, C132)>1, \"\", C132))","v":""},{"$f":"IF(E132=\"\",\"\",CONCATENATE(DIGITADOR!$M$1,E132,F132))","v":""},{"$f":"IF(C132=\"\",\"\",CONCATENATE(C132,ROW()-2))","v":""},null,{"$f":"IF(G132=\"\",\"\",VLOOKUP(G132,referentes!$J$2:$M$26,3,FALSE))","v":""},null,{"$f":"IF(ISNUMBER(SEARCH(\"1\",G132))=TRUE,\"4501\",\n  IF(ISNUMBER(SEARCH(\"2\",G132))=TRUE,\"4502\",\n  IF(ISNUMBER(SEARCH(\"3\",G132))=TRUE,\"4503\",\"\"))\n)","v":""}]
[null,{"$f":"IF(C133=\"\",\"\",IF(COUNTIF($C$3:C133, C133)>1, \"\", C133))","v":""},{"$f":"IF(E133=\"\",\"\",CONCATENATE(DIGITADOR!$M$1,E133,F133))","v":""},"",null,{"$f":"IF(G133=\"\",\"\",VLOOKUP(G133,referentes!$J$2:$M$26,3,FALSE))","v":""},null,""]
[null,{"$f":"IF(C134=\"\",\"\",IF(COUNTIF($C$3:C134, C134)>1, \"\", C134))","v":""},{"$f":"IF(E134=\"\",\"\",CONCATENATE(DIGITADOR!$M$1,E134,F134))","v":""},"",null,{"$f":"IF(G134=\"\",\"\",VLOOKUP(G134,referentes!$J$2:$M$26,3,FALSE))","v":""},null,""]
[null,{"$f":"IF(C135=\"\",\"\",IF(COUNTIF($C$3:C135, C135)>1, \"\", C135))","v":""},{"$f":"IF(E135=\"\",\"\",CONCATENATE(DIGITADOR!$M$1,E135,F135))","v":""},"",null,{"$f":"IF(G135=\"\",\"\",VLOOKUP(G135,referentes!$J$2:$M$26,3,FALSE))","v":""},null,""]
[null,{"$f":"IF(C136=\"\",\"\",IF(COUNTIF($C$3:C136, C136)>1, \"\", C136))","v":""},{"$f":"IF(E136=\"\",\"\",CONCATENATE(DIGITADOR!$M$1,E136,F136))","v":""},"",null,{"$f":"IF(G136=\"\",\"\",VLOOKUP(G136,referentes!$J$2:$M$26,3,FALSE))","v":""},null,""]
[null,{"$f":"IF(C137=\"\",\"\",IF(COUNTIF($C$3:C137, C137)>1, \"\", C137))","v":""},{"$f":"IF(E137=\"\",\"\",CONCATENATE(DIGITADOR!$M$1,E137,F137))","v":""},"",null,{"$f":"IF(G137=\"\",\"\",VLOOKUP(G137,referentes!$J$2:$M$26,3,FALSE))","v":""},null,""]
[null,{"$f":"IF(C138=\"\",\"\",IF(COUNTIF($C$3:C138, C138)>1, \"\", C138))","v":""},{"$f":"IF(E138=\"\",\"\",CONCATENATE(DIGITADOR!$M$1,E138,F138))","v":""},"",null,{"$f":"IF(G138=\"\",\"\",VLOOKUP(G138,referentes!$J$2:$M$26,3,FALSE))","v":""},null,""]
[null,{"$f":"IF(C139=\"\",\"\",IF(COUNTIF($C$3:C139, C139)>1, \"\", C139))","v":""},{"$f":"IF(E139=\"\",\"\",CONCATENATE(DIGITADOR!$M$1,E139,F139))","v":""},"",null,{"$f":"IF(G139=\"\",\"\",VLOOKUP(G139,referentes!$J$2:$M$26,3,FALSE))","v":""},null,""]
[null,{"$f":"IF(C140=\"\",\"\",IF(COUNTIF($C$3:C140, C140)>1, \"\", C140))","v":""},{"$f":"IF(E140=\"\",\"\",CONCATENATE(DIGITADOR!$M$1,E140,F140))","v":""},"",null,{"$f":"IF(G140=\"\",\"\",VLOOKUP(G140,referentes!$J$2:$M$26,3,FALSE))","v":""},null,""]
[null,{"$f":"IF(C141=\"\",\"\",IF(COUNTIF($C$3:C141, C141)>1, \"\", C141))","v":""},{"$f":"IF(E141=\"\",\"\",CONCATENATE(DIGITADOR!$M$1,E141,F141))","v":""},"",null,{"$f":"IF(G141=\"\",\"\",VLOOKUP(G141,referentes!$J$2:$M$26,3,FALSE))","v":""},null,""]
[null,{"$f":"IF(C142=\"\",\"\",IF(COUNTIF($C$3:C142, C142)>1, \"\", C142))","v":""},{"$f":"IF(E142=\"\",\"\",CONCATENATE(DIGITADOR!$M$1,E142,F142))","v":""},"",null,{"$f":"IF(G142=\"\",\"\",VLOOKUP(G142,referentes!$J$2:$M$26,3,FALSE))","v":""},null,""]
[null,{"$f":"IF(C143=\"\",\"\",IF(COUNTIF($C$3:C143, C143)>1, \"\", C143))","v":""},{"$f":"IF(E143=\"\",\"\",CONCATENATE(DIGITADOR!$M$1,E143,F143))","v":""},"",null,{"$f":"IF(G143=\"\",\"\",VLOOKUP(G143,referentes!$J$2:$M$26,3,FALSE))","v":""},null,""]
[null,{"$f":"IF(C144=\"\",\"\",IF(COUNTIF($C$3:C144, C144)>1, \"\", C144))","v":""},{"$f":"IF(E144=\"\",\"\",CONCATENATE(DIGITADOR!$M$1,E144,F144))","v":""},"",null,{"$f":"IF(G144=\"\",\"\",VLOOKUP(G144,referentes!$J$2:$M$26,3,FALSE))","v":""},null,""]
[null,{"$f":"IF(C145=\"\",\"\",IF(COUNTIF($C$3:C145, C145)>1, \"\", C145))","v":""},{"$f":"IF(E145=\"\",\"\",CONCATENATE(DIGITADOR!$M$1,E145,F145))","v":""},"",null,{"$f":"IF(G145=\"\",\"\",VLOOKUP(G145,referentes!$J$2:$M$26,3,FALSE))","v":""},null,""]
[null,{"$f":"IF(C146=\"\",\"\",IF(COUNTIF($C$3:C146, C146)>1, \"\", C146))","v":""},{"$f":"IF(E146=\"\",\"\",CONCATENATE(DIGITADOR!$M$1,E146,F146))","v":""},"",null,{"$f":"IF(G146=\"\",\"\",VLOOKUP(G146,referentes!$J$2:$M$26,3,FALSE))","v":""},null,""]
[null,{"$f":"IF(C147=\"\",\"\",IF(COUNTIF($C$3:C147, C147)>1, \"\", C147))","v":""},{"$f":"IF(E147=\"\",\"\",CONCATENATE(DIGITADOR!$M$1,E147,F147))","v":""},"",null,{"$f":"IF(G147=\"\",\"\",VLOOKUP(G147,referentes!$J$2:$M$26,3,FALSE))","v":""},null,""]
[null,{"$f":"IF(C148=\"\",\"\",IF(COUNTIF($C$3:C148, C148)>1, \"\", C148))","v":""},{"$f":"IF(E148=\"\",\"\",CONCATENATE(DIGITADOR!$M$1,E148,F148))","v":""},"",null,{"$f":"IF(G148=\"\",\"\",VLOOKUP(G148,referentes!$J$2:$M$26,3,FALSE))","v":""},null,""]
[null,{"$f":"IF(C149=\"\",\"\",IF(COUNTIF($C$3:C149, C149)>1, \"\", C149))","v":""},{"$f":"IF(E149=\"\",\"\",CONCATENATE(DIGITADOR!$M$1,E149,F149))","v":""},"",null,{"$f":"IF(G149=\"\",\"\",VLOOKUP(G149,referentes!$J$2:$M$26,3,FALSE))","v":""},null,""]
[null,{"$f":"IF(C150=\"\",\"\",IF(COUNTIF($C$3:C150, C150)>1, \"\", C150))","v":""},{"$f":"IF(E150=\"\",\"\",CONCATENATE(DIGITADOR!$M$1,E150,F150))","v":""},"",null,{"$f":"IF(G150=\"\",\"\",VLOOKUP(G150,referentes!$J$2:$M$26,3,FALSE))","v":""},null,""]
[null,{"$f":"IF(C151=\"\",\"\",IF(COUNTIF($C$3:C151, C151)>1, \"\", C151))","v":""},{"$f":"IF(E151=\"\",\"\",CONCATENATE(DIGITADOR!$M$1,E151,F151))","v":""},"",null,{"$f":"IF(G151=\"\",\"\",VLOOKUP(G151,referentes!$J$2:$M$26,3,FALSE))","v":""},null,""]
[null,{"$f":"IF(C152=\"\",\"\",IF(COUNTIF($C$3:C152, C152)>1, \"\", C152))","v":""},{"$f":"IF(E152=\"\",\"\",CONCATENATE(DIGITADOR!$M$1,E152,F152))","v":""},"",null,{"$f":"IF(G152=\"\",\"\",VLOOKUP(G152,referentes!$J$2:$M$26,3,FALSE))","v":""},null,""]
[null,{"$f":"IF(C153=\"\",\"\",IF(COUNTIF($C$3:C153, C153)>1, \"\", C153))","v":""},{"$f":"IF(E153=\"\",\"\",CONCATENATE(DIGITADOR!$M$1,E153,F153))","v":""},"",null,{"$f":"IF(G153=\"\",\"\",VLOOKUP(G153,referentes!$J$2:$M$26,3,FALSE))","v":""},null,""]
[null,{"$f":"IF(C154=\"\",\"\",IF(COUNTIF($C$3:C154, C154)>1, \"\", C154))","v":""},{"$f":"IF(E154=\"\",\"\",CONCATENATE(DIGITADOR!$M$1,E154,F154))","v":""},"",null,{"$f":"IF(G154=\"\",\"\",VLOOKUP(G154,referentes!$J$2:$M$26,3,FALSE))","v":""},null,""]
[null,{"$f":"IF(C155=\"\",\"\",IF(COUNTIF($C$3:C155, C155)>1, \"\", C155))","v":""},{"$f":"IF(E155=\"\",\"\",CONCATENATE(DIGITADOR!$M$1,E155,F155))","v":""},"",null,{"$f":"IF(G155=\"\",\"\",VLOOKUP(G155,referentes!$J$2:$M$26,3,FALSE))","v":""},null,""]
[null,{"$f":"IF(C156=\"\",\"\",IF(COUNTIF($C$3:C156, C156)>1, \"\", C156))","v":""},{"$f":"IF(E156=\"\",\"\",CONCATENATE(DIGITADOR!$M$1,E156,F156))","v":""},"",null,{"$f":"IF(G156=\"\",\"\",VLOOKUP(G156,referentes!$J$2:$M$26,3,FALSE))","v":""},null,""]
[null,{"$f":"IF(C157=\"\",\"\",IF(COUNTIF($C$3:C157, C157)>1, \"\", C157))","v":""},{"$f":"IF(E157=\"\",\"\",CONCATENATE(DIGITADOR!$M$1,E157,F157))","v":""},"",null,{"$f":"IF(G157=\"\",\"\",VLOOKUP(G157,referentes!$J$2:$M$26,3,FALSE))","v":""},null,""]
[null,{"$f":"IF(C158=\"\",\"\",IF(COUNTIF($C$3:C158, C158)>1, \"\", C158))","v":""},{"$f":"IF(E158=\"\",\"\",CONCATENATE(DIGITADOR!$M$1,E158,F158))","v":""},"",null,{"$f":"IF(G158=\"\",\"\",VLOOKUP(G158,referentes!$J$2:$M$26,3,FALSE))","v":""},null,""]
[null,{"$f":"IF(C159=\"\",\"\",IF(COUNTIF($C$3:C159, C159)>1, \"\", C159))","v":""},{"$f":"IF(E159=\"\",\"\",CONCATENATE(DIGITADOR!$M$1,E159,F159))","v":""},"",null,{"$f":"IF(G159=\"\",\"\",VLOOKUP(G159,referentes!$J$2:$M$26,3,FALSE))","v":""},null,""]
[null,{"$f":"IF(C160=\"\",\"\",IF(COUNTIF($C$3:C160, C160)>1, \"\", C160))","v":""},{"$f":"IF(E160=\"\",\"\",CONCATENATE(DIGITADOR!$M$1,E160,F160))","v":""},"",null,{"$f":"IF(G160=\"\",\"\",VLOOKUP(G160,referentes!$J$2:$M$26,3,FALSE))","v":""},null,""]
[null,{"$f":"IF(C161=\"\",\"\",IF(COUNTIF($C$3:C161, C161)>1, \"\", C161))","v":""},{"$f":"IF(E161=\"\",\"\",CONCATENATE(DIGITADOR!$M$1,E161,F161))","v":""},"",null,{"$f":"IF(G161=\"\",\"\",VLOOKUP(G161,referentes!$J$2:$M$26,3,FALSE))","v":""},null,""]
[null,{"$f":"IF(C162=\"\",\"\",IF(COUNTIF($C$3:C162, C162)>1, \"\", C162))","v":""},{"$f":"IF(E162=\"\",\"\",CONCATENATE(DIGITADOR!$M$1,E162,F162))","v":""},"",null,{"$f":"IF(G162=\"\",\"\",VLOOKUP(G162,referentes!$J$2:$M$26,3,FALSE))","v":""},null,""]
[null,{"$f":"IF(C163=\"\",\"\",IF(COUNTIF($C$3:C163, C163)>1, \"\", C163))","v":""},{"$f":"IF(E163=\"\",\"\",CONCATENATE(DIGITADOR!$M$1,E163,F163))","v":""},"",null,{"$f":"IF(G163=\"\",\"\",VLOOKUP(G163,referentes!$J$2:$M$26,3,FALSE))","v":""},null,""]
[null,{"$f":"IF(C164=\"\",\"\",IF(COUNTIF($C$3:C164, C164)>1, \"\", C164))","v":""},{"$f":"IF(E164=\"\",\"\",CONCATENATE(DIGITADOR!$M$1,E164,F164))","v":""},"",null,{"$f":"IF(G164=\"\",\"\",VLOOKUP(G164,referentes!$J$2:$M$26,3,FALSE))","v":""},null,""]
[null,{"$f":"IF(C165=\"\",\"\",IF(COUNTIF($C$3:C165, C165)>1, \"\", C165))","v":""},{"$f":"IF(E165=\"\",\"\",CONCATENATE(DIGITADOR!$M$1,E165,F165))","v":""},"",null,{"$f":"IF(G165=\"\",\"\",VLOOKUP(G165,referentes!$J$2:$M$26,3,FALSE))","v":""},null,""]
[null,{"$f":"IF(C166=\"\",\"\",IF(COUNTIF($C$3:C166, C166)>1, \"\", C166))","v":""},{"$f":"IF(E166=\"\",\"\",CONCATENATE(DIGITADOR!$M$1,E166,F166))","v":""},"",null,{"$f":"IF(G166=\"\",\"\",VLOOKUP(G166,referentes!$J$2:$M$26,3,FALSE))","v":""},null,""]
[null,{"$f":"IF(C167=\"\",\"\",IF(COUNTIF($C$3:C167, C167)>1, \"\", C167))","v":""},{"$f":"IF(E167=\"\",\"\",CONCATENATE(DIGITADOR!$M$1,E167,F167))","v":""},"",null,{"$f":"IF(G167=\"\",\"\",VLOOKUP(G167,referentes!$J$2:$M$26,3,FALSE))","v":""},null,""]
[null,{"$f":"IF(C168=\"\",\"\",IF(COUNTIF($C$3:C168, C168)>1, \"\", C168))","v":""},{"$f":"IF(E168=\"\",\"\",CONCATENATE(DIGITADOR!$M$1,E168,F168))","v":""},"",null,{"$f":"IF(G168=\"\",\"\",VLOOKUP(G168,referentes!$J$2:$M$26,3,FALSE))","v":""},null,""]
[null,{"$f":"IF(C169=\"\",\"\",IF(COUNTIF($C$3:C169, C169)>1, \"\", C169))","v":""},{"$f":"IF(E169=\"\",\"\",CONCATENATE(DIGITADOR!$M$1,E169,F169))","v":""},"",null,{"$f":"IF(G169=\"\",\"\",VLOOKUP(G169,referentes!$J$2:$M$26,3,FALSE))","v":""},null,""]
[null,{"$f":"IF(C170=\"\",\"\",IF(COUNTIF($C$3:C170, C170)>1, \"\", C170))","v":""},{"$f":"IF(E170=\"\",\"\",CONCATENATE(DIGITADOR!$M$1,E170,F170))","v":""},"",null,{"$f":"IF(G170=\"\",\"\",VLOOKUP(G170,referentes!$J$2:$M$26,3,FALSE))","v":""},null,""]
[null,{"$f":"IF(C171=\"\",\"\",IF(COUNTIF($C$3:C171, C171)>1, \"\", C171))","v":""},{"$f":"IF(E171=\"\",\"\",CONCATENATE(DIGITADOR!$M$1,E171,F171))","v":""},"",null,{"$f":"IF(G171=\"\",\"\",VLOOKUP(G171,referentes!$J$2:$M$26,3,FALSE))","v":""},null,""]
[null,{"$f":"IF(C172=\"\",\"\",IF(COUNTIF($C$3:C172, C172)>1, \"\", C172))","v":""},{"$f":"IF(E172=\"\",\"\",CONCATENATE(DIGITADOR!$M$1,E172,F172))","v":""},"",null,{"$f":"IF(G172=\"\",\"\",VLOOKUP(G172,referentes!$J$2:$M$26,3,FALSE))","v":""},null,""]
[null,{"$f":"IF(C173=\"\",\"\",IF(COUNTIF($C$3:C173, C173)>1, \"\", C173))","v":""},{"$f":"IF(E173=\"\",\"\",CONCATENATE(DIGITADOR!$M$1,E173,F173))","v":""},"",null,{"$f":"IF(G173=\"\",\"\",VLOOKUP(G173,referentes!$J$2:$M$26,3,FALSE))","v":""},null,""]
[null,{"$f":"IF(C174=\"\",\"\",IF(COUNTIF($C$3:C174, C174)>1, \"\", C174))","v":""},{"$f":"IF(E174=\"\",\"\",CONCATENATE(DIGITADOR!$M$1,E174,F174))","v":""},"",null,{"$f":"IF(G174=\"\",\"\",VLOOKUP(G174,referentes!$J$2:$M$26,3,FALSE))","v":""},null,""]
[null,{"$f":"IF(C175=\"\",\"\",IF(COUNTIF($C$3:C175, C175)>1, \"\", C175))","v":""},{"$f":"IF(E175=\"\",\"\",CONCATENATE(DIGITADOR!$M$1,E175,F175))","v":""},"",null,{"$f":"IF(G175=\"\",\"\",VLOOKUP(G175,referentes!$J$2:$M$26,3,FALSE))","v":""},null,""]
[null,{"$f":"IF(C176=\"\",\"\",IF(COUNTIF($C$3:C176, C176)>1, \"\", C176))","v":""},{"$f":"IF(E176=\"\",\"\",CONCATENATE(DIGITADOR!$M$1,E176,F176))","v":""},"",null,{"$f":"IF(G176=\"\",\"\",VLOOKUP(G176,referentes!$J$2:$M$26,3,FALSE))","v":""},null,""]
[null,{"$f":"IF(C177=\"\",\"\",IF(COUNTIF($C$3:C177, C177)>1, \"\", C177))","v":""},{"$f":"IF(E177=\"\",\"\",CONCATENATE(DIGITADOR!$M$1,E177,F177))","v":""},"",null,{"$f":"IF(G177=\"\",\"\",VLOOKUP(G177,referentes!$J$2:$M$26,3,FALSE))","v":""},null,""]
[null,{"$f":"IF(C178=\"\",\"\",IF(COUNTIF($C$3:C178, C178)>1, \"\", C178))","v":""},{"$f":"IF(E178=\"\",\"\",CONCATENATE(DIGITADOR!$M$1,E178,F178))","v":""},"",null,{"$f":"IF(G178=\"\",\"\",VLOOKUP(G178,referentes!$J$2:$M$26,3,FALSE))","v":""},null,""]
[null,{"$f":"IF(C179=\"\",\"\",IF(COUNTIF($C$3:C179, C179)>1, \"\", C179))","v":""},{"$f":"IF(E179=\"\",\"\",CONCATENATE(DIGITADOR!$M$1,E179,F179))","v":""},"",null,{"$f":"IF(G179=\"\",\"\",VLOOKUP(G179,referentes!$J$2:$M$26,3,FALSE))","v":""},null,""]
[null,{"$f":"IF(C180=\"\",\"\",IF(COUNTIF($C$3:C180, C180)>1, \"\", C180))","v":""},{"$f":"IF(E180=\"\",\"\",CONCATENATE(DIGITADOR!$M$1,E180,F180))","v":""},"",null,{"$f":"IF(G180=\"\",\"\",VLOOKUP(G180,referentes!$J$2:$M$26,3,FALSE))","v":""},null,""]
[null,{"$f":"IF(C181=\"\",\"\",IF(COUNTIF($C$3:C181, C181)>1, \"\", C181))","v":""},{"$f":"IF(E181=\"\",\"\",CONCATENATE(DIGITADOR!$M$1,E181,F181))","v":""},"",null,{"$f":"IF(G181=\"\",\"\",VLOOKUP(G181,referentes!$J$2:$M$26,3,FALSE))","v":""},null,""]
[null,{"$f":"IF(C182=\"\",\"\",IF(COUNTIF($C$3:C182, C182)>1, \"\", C182))","v":""},{"$f":"IF(E182=\"\",\"\",CONCATENATE(DIGITADOR!$M$1,E182,F182))","v":""},"",null,{"$f":"IF(G182=\"\",\"\",VLOOKUP(G182,referentes!$J$2:$M$26,3,FALSE))","v":""},null,""]
[null,{"$f":"IF(C183=\"\",\"\",IF(COUNTIF($C$3:C183, C183)>1, \"\", C183))","v":""},{"$f":"IF(E183=\"\",\"\",CONCATENATE(DIGITADOR!$M$1,E183,F183))","v":""},"",null,{"$f":"IF(G183=\"\",\"\",VLOOKUP(G183,referentes!$J$2:$M$26,3,FALSE))","v":""},null,""]
[null,{"$f":"IF(C184=\"\",\"\",IF(COUNTIF($C$3:C184, C184)>1, \"\", C184))","v":""},{"$f":"IF(E184=\"\",\"\",CONCATENATE(DIGITADOR!$M$1,E184,F184))","v":""},"",null,{"$f":"IF(G184=\"\",\"\",VLOOKUP(G184,referentes!$J$2:$M$26,3,FALSE))","v":""},null,""]
[null,{"$f":"IF(C185=\"\",\"\",IF(COUNTIF($C$3:C185, C185)>1, \"\", C185))","v":""},{"$f":"IF(E185=\"\",\"\",CONCATENATE(DIGITADOR!$M$1,E185,F185))","v":""},"",null,{"$f":"IF(G185=\"\",\"\",VLOOKUP(G185,referentes!$J$2:$M$26,3,FALSE))","v":""},null,""]
[null,{"$f":"IF(C186=\"\",\"\",IF(COUNTIF($C$3:C186, C186)>1, \"\", C186))","v":""},{"$f":"IF(E186=\"\",\"\",CONCATENATE(DIGITADOR!$M$1,E186,F186))","v":""},"",null,{"$f":"IF(G186=\"\",\"\",VLOOKUP(G186,referentes!$J$2:$M$26,3,FALSE))","v":""},null,""]
[null,{"$f":"IF(C187=\"\",\"\",IF(COUNTIF($C$3:C187, C187)>1, \"\", C187))","v":""},{"$f":"IF(E187=\"\",\"\",CONCATENATE(DIGITADOR!$M$1,E187,F187))","v":""},"",null,{"$f":"IF(G187=\"\",\"\",VLOOKUP(G187,referentes!$J$2:$M$26,3,FALSE))","v":""},null,""]
[null,{"$f":"IF(C188=\"\",\"\",IF(COUNTIF($C$3:C188, C188)>1, \"\", C188))","v":""},{"$f":"IF(E188=\"\",\"\",CONCATENATE(DIGITADOR!$M$1,E188,F188))","v":""},"",null,{"$f":"IF(G188=\"\",\"\",VLOOKUP(G188,referentes!$J$2:$M$26,3,FALSE))","v":""},null,""]
[null,{"$f":"IF(C189=\"\",\"\",IF(COUNTIF($C$3:C189, C189)>1, \"\", C189))","v":""},{"$f":"IF(E189=\"\",\"\",CONCATENATE(DIGITADOR!$M$1,E189,F189))","v":""},"",null,{"$f":"IF(G189=\"\",\"\",VLOOKUP(G189,referentes!$J$2:$M$26,3,FALSE))","v":""},null,""]
[null,{"$f":"IF(C190=\"\",\"\",IF(COUNTIF($C$3:C190, C190)>1, \"\", C190))","v":""},{"$f":"IF(E190=\"\",\"\",CONCATENATE(DIGITADOR!$M$1,E190,F190))","v":""},"",null,{"$f":"IF(G190=\"\",\"\",VLOOKUP(G190,referentes!$J$2:$M$26,3,FALSE))","v":""},null,""]
[null,{"$f":"IF(C191=\"\",\"\",IF(COUNTIF($C$3:C191, C191)>1, \"\", C191))","v":""},{"$f":"IF(E191=\"\",\"\",CONCATENATE(DIGITADOR!$M$1,E191,F191))","v":""},"",null,{"$f":"IF(G191=\"\",\"\",VLOOKUP(G191,referentes!$J$2:$M$26,3,FALSE))","v":""},null,""]
[null,{"$f":"IF(C192=\"\",\"\",IF(COUNTIF($C$3:C192, C192)>1, \"\", C192))","v":""},{"$f":"IF(E192=\"\",\"\",CONCATENATE(DIGITADOR!$M$1,E192,F192))","v":""},"",null,{"$f":"IF(G192=\"\",\"\",VLOOKUP(G192,referentes!$J$2:$M$26,3,FALSE))","v":""},null,""]
[null,{"$f":"IF(C193=\"\",\"\",IF(COUNTIF($C$3:C193, C193)>1, \"\", C193))","v":""},{"$f":"IF(E193=\"\",\"\",CONCATENATE(DIGITADOR!$M$1,E193,F193))","v":""},"",null,{"$f":"IF(G193=\"\",\"\",VLOOKUP(G193,referentes!$J$2:$M$26,3,FALSE))","v":""},null,""]
[null,{"$f":"IF(C194=\"\",\"\",IF(COUNTIF($C$3:C194, C194)>1, \"\", C194))","v":""},{"$f":"IF(E194=\"\",\"\",CONCATENATE(DIGITADOR!$M$1,E194,F194))","v":""},"",null,{"$f":"IF(G194=\"\",\"\",VLOOKUP(G194,referentes!$J$2:$M$26,3,FALSE))","v":""},null,""]
[null,{"$f":"IF(C195=\"\",\"\",IF(COUNTIF($C$3:C195, C195)>1, \"\", C195))","v":""},{"$f":"IF(E195=\"\",\"\",CONCATENATE(DIGITADOR!$M$1,E195,F195))","v":""},"",null,{"$f":"IF(G195=\"\",\"\",VLOOKUP(G195,referentes!$J$2:$M$26,3,FALSE))","v":""},null,""]
[null,{"$f":"IF(C196=\"\",\"\",IF(COUNTIF($C$3:C196, C196)>1, \"\", C196))","v":""},{"$f":"IF(E196=\"\",\"\",CONCATENATE(DIGITADOR!$M$1,E196,F196))","v":""},{"$f":"IF(C196=\"\",\"\",CONCATENATE(C196,ROW()-2))","v":""},null,{"$f":"IF(G196=\"\",\"\",VLOOKUP(G196,referentes!$J$2:$M$26,3,FALSE))","v":""},null,{"$f":"IF(ISNUMBER(SEARCH(\"1\",G196))=TRUE,\"4501\",\n  IF(ISNUMBER(SEARCH(\"2\",G196))=TRUE,\"4502\",\n  IF(ISNUMBER(SEARCH(\"3\",G196))=TRUE,\"4503\",\"\"))\n)","v":""}]
[null,{"$f":"IF(C197=\"\",\"\",IF(COUNTIF($C$3:C197, C197)>1, \"\", C197))","v":""},{"$f":"IF(E197=\"\",\"\",CONCATENATE(DIGITADOR!$M$1,E197,F197))","v":""},"",null,{"$f":"IF(G197=\"\",\"\",VLOOKUP(G197,referentes!$J$2:$M$26,3,FALSE))","v":""},null,""]
[null,{"$f":"IF(C198=\"\",\"\",IF(COUNTIF($C$3:C198, C198)>1, \"\", C198))","v":""},{"$f":"IF(E198=\"\",\"\",CONCATENATE(DIGITADOR!$M$1,E198,F198))","v":""},"",null,{"$f":"IF(G198=\"\",\"\",VLOOKUP(G198,referentes!$J$2:$M$26,3,FALSE))","v":""},null,""]
[null,{"$f":"IF(C199=\"\",\"\",IF(COUNTIF($C$3:C199, C199)>1, \"\", C199))","v":""},{"$f":"IF(E199=\"\",\"\",CONCATENATE(DIGITADOR!$M$1,E199,F199))","v":""},"",null,{"$f":"IF(G199=\"\",\"\",VLOOKUP(G199,referentes!$J$2:$M$26,3,FALSE))","v":""},null,""]
[null,{"$f":"IF(C200=\"\",\"\",IF(COUNTIF($C$3:C200, C200)>1, \"\", C200))","v":""},{"$f":"IF(E200=\"\",\"\",CONCATENATE(DIGITADOR!$M$1,E200,F200))","v":""},"",null,{"$f":"IF(G200=\"\",\"\",VLOOKUP(G200,referentes!$J$2:$M$26,3,FALSE))","v":""},null,""]
[null,{"$f":"IF(C201=\"\",\"\",IF(COUNTIF($C$3:C201, C201)>1, \"\", C201))","v":""},{"$f":"IF(E201=\"\",\"\",CONCATENATE(DIGITADOR!$M$1,E201,F201))","v":""},"",null,{"$f":"IF(G201=\"\",\"\",VLOOKUP(G201,referentes!$J$2:$M$26,3,FALSE))","v":""},null,""]
[null,{"$f":"IF(C202=\"\",\"\",IF(COUNTIF($C$3:C202, C202)>1, \"\", C202))","v":""},{"$f":"IF(E202=\"\",\"\",CONCATENATE(DIGITADOR!$M$1,E202,F202))","v":""},"",null,{"$f":"IF(G202=\"\",\"\",VLOOKUP(G202,referentes!$J$2:$M$26,3,FALSE))","v":""},null,""]
[null,{"$f":"IF(C203=\"\",\"\",IF(COUNTIF($C$3:C203, C203)>1, \"\", C203))","v":""},{"$f":"IF(E203=\"\",\"\",CONCATENATE(DIGITADOR!$M$1,E203,F203))","v":""},"",null,{"$f":"IF(G203=\"\",\"\",VLOOKUP(G203,referentes!$J$2:$M$26,3,FALSE))","v":""},null,""]
[null,{"$f":"IF(C204=\"\",\"\",IF(COUNTIF($C$3:C204, C204)>1, \"\", C204))","v":""},{"$f":"IF(E204=\"\",\"\",CONCATENATE(DIGITADOR!$M$1,E204,F204))","v":""},"",null,{"$f":"IF(G204=\"\",\"\",VLOOKUP(G204,referentes!$J$2:$M$26,3,FALSE))","v":""},null,""]
[null,{"$f":"IF(C205=\"\",\"\",IF(COUNTIF($C$3:C205, C205)>1, \"\", C205))","v":""},{"$f":"IF(E205=\"\",\"\",CONCATENATE(DIGITADOR!$M$1,E205,F205))","v":""},"",null,{"$f":"IF(G205=\"\",\"\",VLOOKUP(G205,referentes!$J$2:$M$26,3,FALSE))","v":""},null,""]
[null,{"$f":"IF(C206=\"\",\"\",IF(COUNTIF($C$3:C206, C206)>1, \"\", C206))","v":""},{"$f":"IF(E206=\"\",\"\",CONCATENATE(DIGITADOR!$M$1,E206,F206))","v":""},"",null,{"$f":"IF(G206=\"\",\"\",VLOOKUP(G206,referentes!$J$2:$M$26,3,FALSE))","v":""},null,""]
[null,{"$f":"IF(C207=\"\",\"\",IF(COUNTIF($C$3:C207, C207)>1, \"\", C207))","v":""},{"$f":"IF(E207=\"\",\"\",CONCATENATE(DIGITADOR!$M$1,E207,F207))","v":""},"",null,{"$f":"IF(G207=\"\",\"\",VLOOKUP(G207,referentes!$J$2:$M$26,3,FALSE))","v":""},null,""]
[null,{"$f":"IF(C208=\"\",\"\",IF(COUNTIF($C$3:C208, C208)>1, \"\", C208))","v":""},{"$f":"IF(E208=\"\",\"\",CONCATENATE(DIGITADOR!$M$1,E208,F208))","v":""},"",null,{"$f":"IF(G208=\"\",\"\",VLOOKUP(G208,referentes!$J$2:$M$26,3,FALSE))","v":""},null,""]
[null,{"$f":"IF(C209=\"\",\"\",IF(COUNTIF($C$3:C209, C209)>1, \"\", C209))","v":""},{"$f":"IF(E209=\"\",\"\",CONCATENATE(DIGITADOR!$M$1,E209,F209))","v":""},"",null,{"$f":"IF(G209=\"\",\"\",VLOOKUP(G209,referentes!$J$2:$M$26,3,FALSE))","v":""},null,""]
[null,{"$f":"IF(C210=\"\",\"\",IF(COUNTIF($C$3:C210, C210)>1, \"\", C210))","v":""},{"$f":"IF(E210=\"\",\"\",CONCATENATE(DIGITADOR!$M$1,E210,F210))","v":""},"",null,{"$f":"IF(G210=\"\",\"\",VLOOKUP(G210,referentes!$J$2:$M$26,3,FALSE))","v":""},null,""]
[null,{"$f":"IF(C211=\"\",\"\",IF(COUNTIF($C$3:C211, C211)>1, \"\", C211))","v":""},{"$f":"IF(E211=\"\",\"\",CONCATENATE(DIGITADOR!$M$1,E211,F211))","v":""},"",null,{"$f":"IF(G211=\"\",\"\",VLOOKUP(G211,referentes!$J$2:$M$26,3,FALSE))","v":""},null,""]
[null,{"$f":"IF(C212=\"\",\"\",IF(COUNTIF($C$3:C212, C212)>1, \"\", C212))","v":""},{"$f":"IF(E212=\"\",\"\",CONCATENATE(DIGITADOR!$M$1,E212,F212))","v":""},"",null,{"$f":"IF(G212=\"\",\"\",VLOOKUP(G212,referentes!$J$2:$M$26,3,FALSE))","v":""},null,""]
[null,{"$f":"IF(C213=\"\",\"\",IF(COUNTIF($C$3:C213, C213)>1, \"\", C213))","v":""},{"$f":"IF(E213=\"\",\"\",CONCATENATE(DIGITADOR!$M$1,E213,F213))","v":""},"",null,{"$f":"IF(G213=\"\",\"\",VLOOKUP(G213,referentes!$J$2:$M$26,3,FALSE))","v":""},null,""]
[null,{"$f":"IF(C214=\"\",\"\",IF(COUNTIF($C$3:C214, C214)>1, \"\", C214))","v":""},{"$f":"IF(E214=\"\",\"\",CONCATENATE(DIGITADOR!$M$1,E214,F214))","v":""},"",null,{"$f":"IF(G214=\"\",\"\",VLOOKUP(G214,referentes!$J$2:$M$26,3,FALSE))","v":""},null,""]
[null,{"$f":"IF(C215=\"\",\"\",IF(COUNTIF($C$3:C215, C215)>1, \"\", C215))","v":""},{"$f":"IF(E215=\"\",\"\",CONCATENATE(DIGITADOR!$M$1,E215,F215))","v":""},"",null,{"$f":"IF(G215=\"\",\"\",VLOOKUP(G215,referentes!$J$2:$M$26,3,FALSE))","v":""},null,""]
[null,{"$f":"IF(C216=\"\",\"\",IF(COUNTIF($C$3:C216, C216)>1, \"\", C216))","v":""},{"$f":"IF(E216=\"\",\"\",CONCATENATE(DIGITADOR!$M$1,E216,F216))","v":""},"",null,{"$f":"IF(G216=\"\",\"\",VLOOKUP(G216,referentes!$J$2:$M$26,3,FALSE))","v":""},null,""]
[null,{"$f":"IF(C217=\"\",\"\",IF(COUNTIF($C$3:C217, C217)>1, \"\", C217))","v":""},{"$f":"IF(E217=\"\",\"\",CONCATENATE(DIGITADOR!$M$1,E217,F217))","v":""},"",null,{"$f":"IF(G217=\"\",\"\",VLOOKUP(G217,referentes!$J$2:$M$26,3,FALSE))","v":""},null,""]
[null,{"$f":"IF(C218=\"\",\"\",IF(COUNTIF($C$3:C218, C218)>1, \"\", C218))","v":""},{"$f":"IF(E218=\"\",\"\",CONCATENATE(DIGITADOR!$M$1,E218,F218))","v":""},"",null,{"$f":"IF(G218=\"\",\"\",VLOOKUP(G218,referentes!$J$2:$M$26,3,FALSE))","v":""},null,""]
[null,{"$f":"IF(C219=\"\",\"\",IF(COUNTIF($C$3:C219, C219)>1, \"\", C219))","v":""},{"$f":"IF(E219=\"\",\"\",CONCATENATE(DIGITADOR!$M$1,E219,F219))","v":""},"",null,{"$f":"IF(G219=\"\",\"\",VLOOKUP(G219,referentes!$J$2:$M$26,3,FALSE))","v":""},null,""]
[null,{"$f":"IF(C220=\"\",\"\",IF(COUNTIF($C$3:C220, C220)>1, \"\", C220))","v":""},{"$f":"IF(E220=\"\",\"\",CONCATENATE(DIGITADOR!$M$1,E220,F220))","v":""},"",null,{"$f":"IF(G220=\"\",\"\",VLOOKUP(G220,referentes!$J$2:$M$26,3,FALSE))","v":""},null,""]
[null,{"$f":"IF(C221=\"\",\"\",IF(COUNTIF($C$3:C221, C221)>1, \"\", C221))","v":""},{"$f":"IF(E221=\"\",\"\",CONCATENATE(DIGITADOR!$M$1,E221,F221))","v":""},"",null,{"$f":"IF(G221=\"\",\"\",VLOOKUP(G221,referentes!$J$2:$M$26,3,FALSE))","v":""},null,""]
[null,{"$f":"IF(C222=\"\",\"\",IF(COUNTIF($C$3:C222, C222)>1, \"\", C222))","v":""},{"$f":"IF(E222=\"\",\"\",CONCATENATE(DIGITADOR!$M$1,E222,F222))","v":""},"",null,{"$f":"IF(G222=\"\",\"\",VLOOKUP(G222,referentes!$J$2:$M$26,3,FALSE))","v":""},null,""]
[null,{"$f":"IF(C223=\"\",\"\",IF(COUNTIF($C$3:C223, C223)>1, \"\", C223))","v":""},{"$f":"IF(E223=\"\",\"\",CONCATENATE(DIGITADOR!$M$1,E223,F223))","v":""},"",null,{"$f":"IF(G223=\"\",\"\",VLOOKUP(G223,referentes!$J$2:$M$26,3,FALSE))","v":""},null,""]
[null,{"$f":"IF(C224=\"\",\"\",IF(COUNTIF($C$3:C224, C224)>1, \"\", C224))","v":""},{"$f":"IF(E224=\"\",\"\",CONCATENATE(DIGITADOR!$M$1,E224,F224))","v":""},"",null,{"$f":"IF(G224=\"\",\"\",VLOOKUP(G224,referentes!$J$2:$M$26,3,FALSE))","v":""},null,""]
[null,{"$f":"IF(C225=\"\",\"\",IF(COUNTIF($C$3:C225, C225)>1, \"\", C225))","v":""},{"$f":"IF(E225=\"\",\"\",CONCATENATE(DIGITADOR!$M$1,E225,F225))","v":""},"",null,{"$f":"IF(G225=\"\",\"\",VLOOKUP(G225,referentes!$J$2:$M$26,3,FALSE))","v":""},null,""]
[null,{"$f":"IF(C226=\"\",\"\",IF(COUNTIF($C$3:C226, C226)>1, \"\", C226))","v":""},{"$f":"IF(E226=\"\",\"\",CONCATENATE(DIGITADOR!$M$1,E226,F226))","v":""},"",null,{"$f":"IF(G226=\"\",\"\",VLOOKUP(G226,referentes!$J$2:$M$26,3,FALSE))","v":""},null,""]
[null,{"$f":"IF(C227=\"\",\"\",IF(COUNTIF($C$3:C227, C227)>1, \"\", C227))","v":""},{"$f":"IF(E227=\"\",\"\",CONCATENATE(DIGITADOR!$M$1,E227,F227))","v":""},"",null,{"$f":"IF(G227=\"\",\"\",VLOOKUP(G227,referentes!$J$2:$M$26,3,FALSE))","v":""},null,""]
[null,{"$f":"IF(C228=\"\",\"\",IF(COUNTIF($C$3:C228, C228)>1, \"\", C228))","v":""},{"$f":"IF(E228=\"\",\"\",CONCATENATE(DIGITADOR!$M$1,E228,F228))","v":""},"",null,{"$f":"IF(G228=\"\",\"\",VLOOKUP(G228,referentes!$J$2:$M$26,3,FALSE))","v":""},null,""]
[null,{"$f":"IF(C229=\"\",\"\",IF(COUNTIF($C$3:C229, C229)>1, \"\", C229))","v":""},{"$f":"IF(E229=\"\",\"\",CONCATENATE(DIGITADOR!$M$1,E229,F229))","v":""},"",null,{"$f":"IF(G229=\"\",\"\",VLOOKUP(G229,referentes!$J$2:$M$26,3,FALSE))","v":""},null,""]
[null,{"$f":"IF(C230=\"\",\"\",IF(COUNTIF($C$3:C230, C230)>1, \"\", C230))","v":""},{"$f":"IF(E230=\"\",\"\",CONCATENATE(DIGITADOR!$M$1,E230,F230))","v":""},"",null,{"$f":"IF(G230=\"\",\"\",VLOOKUP(G230,referentes!$J$2:$M$26,3,FALSE))","v":""},null,""]
[null,{"$f":"IF(C231=\"\",\"\",IF(COUNTIF($C$3:C231, C231)>1, \"\", C231))","v":""},{"$f":"IF(E231=\"\",\"\",CONCATENATE(DIGITADOR!$M$1,E231,F231))","v":""},"",null,{"$f":"IF(G231=\"\",\"\",VLOOKUP(G231,referentes!$J$2:$M$26,3,FALSE))","v":""},null,""]
[null,{"$f":"IF(C232=\"\",\"\",IF(COUNTIF($C$3:C232, C232)>1, \"\", C232))","v":""},{"$f":"IF(E232=\"\",\"\",CONCATENATE(DIGITADOR!$M$1,E232,F232))","v":""},"",null,{"$f":"IF(G232=\"\",\"\",VLOOKUP(G232,referentes!$J$2:$M$26,3,FALSE))","v":""},null,""]
[null,{"$f":"IF(C233=\"\",\"\",IF(COUNTIF($C$3:C233, C233)>1, \"\", C233))","v":""},{"$f":"IF(E233=\"\",\"\",CONCATENATE(DIGITADOR!$M$1,E233,F233))","v":""},"",null,{"$f":"IF(G233=\"\",\"\",VLOOKUP(G233,referentes!$J$2:$M$26,3,FALSE))","v":""},null,""]
[null,{"$f":"IF(C234=\"\",\"\",IF(COUNTIF($C$3:C234, C234)>1, \"\", C234))","v":""},{"$f":"IF(E234=\"\",\"\",CONCATENATE(DIGITADOR!$M$1,E234,F234))","v":""},"",null,{"$f":"IF(G234=\"\",\"\",VLOOKUP(G234,referentes!$J$2:$M$26,3,FALSE))","v":""},null,""]
[null,{"$f":"IF(C235=\"\",\"\",IF(COUNTIF($C$3:C235, C235)>1, \"\", C235))","v":""},{"$f":"IF(E235=\"\",\"\",CONCATENATE(DIGITADOR!$M$1,E235,F235))","v":""},"",null,{"$f":"IF(G235=\"\",\"\",VLOOKUP(G235,referentes!$J$2:$M$26,3,FALSE))","v":""},null,""]
[null,{"$f":"IF(C236=\"\",\"\",IF(COUNTIF($C$3:C236, C236)>1, \"\", C236))","v":""},{"$f":"IF(E236=\"\",\"\",CONCATENATE(DIGITADOR!$M$1,E236,F236))","v":""},"",null,{"$f":"IF(G236=\"\",\"\",VLOOKUP(G236,referentes!$J$2:$M$26,3,FALSE))","v":""},null,""]
[null,{"$f":"IF(C237=\"\",\"\",IF(COUNTIF($C$3:C237, C237)>1, \"\", C237))","v":""},{"$f":"IF(E237=\"\",\"\",CONCATENATE(DIGITADOR!$M$1,E237,F237))","v":""},"",null,{"$f":"IF(G237=\"\",\"\",VLOOKUP(G237,referentes!$J$2:$M$26,3,FALSE))","v":""},null,""]
[null,{"$f":"IF(C238=\"\",\"\",IF(COUNTIF($C$3:C238, C238)>1, \"\", C238))","v":""},{"$f":"IF(E238=\"\",\"\",CONCATENATE(DIGITADOR!$M$1,E238,F238))","v":""},"",null,{"$f":"IF(G238=\"\",\"\",VLOOKUP(G238,referentes!$J$2:$M$26,3,FALSE))","v":""},null,""]
[null,{"$f":"IF(C239=\"\",\"\",IF(COUNTIF($C$3:C239, C239)>1, \"\", C239))","v":""},{"$f":"IF(E239=\"\",\"\",CONCATENATE(DIGITADOR!$M$1,E239,F239))","v":""},"",null,{"$f":"IF(G239=\"\",\"\",VLOOKUP(G239,referentes!$J$2:$M$26,3,FALSE))","v":""},null,""]
[null,{"$f":"IF(C240=\"\",\"\",IF(COUNTIF($C$3:C240, C240)>1, \"\", C240))","v":""},{"$f":"IF(E240=\"\",\"\",CONCATENATE(DIGITADOR!$M$1,E240,F240))","v":""},"",null,{"$f":"IF(G240=\"\",\"\",VLOOKUP(G240,referentes!$J$2:$M$26,3,FALSE))","v":""},null,""]
[null,{"$f":"IF(C241=\"\",\"\",IF(COUNTIF($C$3:C241, C241)>1, \"\", C241))","v":""},{"$f":"IF(E241=\"\",\"\",CONCATENATE(DIGITADOR!$M$1,E241,F241))","v":""},"",null,{"$f":"IF(G241=\"\",\"\",VLOOKUP(G241,referentes!$J$2:$M$26,3,FALSE))","v":""},null,""]
[null,{"$f":"IF(C242=\"\",\"\",IF(COUNTIF($C$3:C242, C242)>1, \"\", C242))","v":""},{"$f":"IF(E242=\"\",\"\",CONCATENATE(DIGITADOR!$M$1,E242,F242))","v":""},"",null,{"$f":"IF(G242=\"\",\"\",VLOOKUP(G242,referentes!$J$2:$M$26,3,FALSE))","v":""},null,""]
[null,{"$f":"IF(C243=\"\",\"\",IF(COUNTIF($C$3:C243, C243)>1, \"\", C243))","v":""},{"$f":"IF(E243=\"\",\"\",CONCATENATE(DIGITADOR!$M$1,E243,F243))","v":""},"",null,{"$f":"IF(G243=\"\",\"\",VLOOKUP(G243,referentes!$J$2:$M$26,3,FALSE))","v":""},null,""]
[null,{"$f":"IF(C244=\"\",\"\",IF(COUNTIF($C$3:C244, C244)>1, \"\", C244))","v":""},{"$f":"IF(E244=\"\",\"\",CONCATENATE(DIGITADOR!$M$1,E244,F244))","v":""},"",null,{"$f":"IF(G244=\"\",\"\",VLOOKUP(G244,referentes!$J$2:$M$26,3,FALSE))","v":""},null,""]
[null,{"$f":"IF(C245=\"\",\"\",IF(COUNTIF($C$3:C245, C245)>1, \"\", C245))","v":""},{"$f":"IF(E245=\"\",\"\",CONCATENATE(DIGITADOR!$M$1,E245,F245))","v":""},"",null,{"$f":"IF(G245=\"\",\"\",VLOOKUP(G245,referentes!$J$2:$M$26,3,FALSE))","v":""},null,""]
[null,{"$f":"IF(C246=\"\",\"\",IF(COUNTIF($C$3:C246, C246)>1, \"\", C246))","v":""},{"$f":"IF(E246=\"\",\"\",CONCATENATE(DIGITADOR!$M$1,E246,F246))","v":""},"",null,{"$f":"IF(G246=\"\",\"\",VLOOKUP(G246,referentes!$J$2:$M$26,3,FALSE))","v":""},null,""]
[null,{"$f":"IF(C247=\"\",\"\",IF(COUNTIF($C$3:C247, C247)>1, \"\", C247))","v":""},{"$f":"IF(E247=\"\",\"\",CONCATENATE(DIGITADOR!$M$1,E247,F247))","v":""},"",null,{"$f":"IF(G247=\"\",\"\",VLOOKUP(G247,referentes!$J$2:$M$26,3,FALSE))","v":""},null,""]
[null,{"$f":"IF(C248=\"\",\"\",IF(COUNTIF($C$3:C248, C248)>1, \"\", C248))","v":""},{"$f":"IF(E248=\"\",\"\",CONCATENATE(DIGITADOR!$M$1,E248,F248))","v":""},"",null,{"$f":"IF(G248=\"\",\"\",VLOOKUP(G248,referentes!$J$2:$M$26,3,FALSE))","v":""},null,""]
[null,{"$f":"IF(C249=\"\",\"\",IF(COUNTIF($C$3:C249, C249)>1, \"\", C249))","v":""},{"$f":"IF(E249=\"\",\"\",CONCATENATE(DIGITADOR!$M$1,E249,F249))","v":""},"",null,{"$f":"IF(G249=\"\",\"\",VLOOKUP(G249,referentes!$J$2:$M$26,3,FALSE))","v":""},null,""]
[null,{"$f":"IF(C250=\"\",\"\",IF(COUNTIF($C$3:C250, C250)>1, \"\", C250))","v":""},{"$f":"IF(E250=\"\",\"\",CONCATENATE(DIGITADOR!$M$1,E250,F250))","v":""},"",null,{"$f":"IF(G250=\"\",\"\",VLOOKUP(G250,referentes!$J$2:$M$26,3,FALSE))","v":""},null,""]
[null,{"$f":"IF(C251=\"\",\"\",IF(COUNTIF($C$3:C251, C251)>1, \"\", C251))","v":""},{"$f":"IF(E251=\"\",\"\",CONCATENATE(DIGITADOR!$M$1,E251,F251))","v":""},"",null,{"$f":"IF(G251=\"\",\"\",VLOOKUP(G251,referentes!$J$2:$M$26,3,FALSE))","v":""},null,""]
[null,{"$f":"IF(C252=\"\",\"\",IF(COUNTIF($C$3:C252, C252)>1, \"\", C252))","v":""},{"$f":"IF(E252=\"\",\"\",CONCATENATE(DIGITADOR!$M$1,E252,F252))","v":""},"",null,{"$f":"IF(G252=\"\",\"\",VLOOKUP(G252,referentes!$J$2:$M$26,3,FALSE))","v":""},null,""]
[null,{"$f":"IF(C253=\"\",\"\",IF(COUNTIF($C$3:C253, C253)>1, \"\", C253))","v":""},{"$f":"IF(E253=\"\",\"\",CONCATENATE(DIGITADOR!$M$1,E253,F253))","v":""},"",null,{"$f":"IF(G253=\"\",\"\",VLOOKUP(G253,referentes!$J$2:$M$26,3,FALSE))","v":""},null,""]
[null,{"$f":"IF(C254=\"\",\"\",IF(COUNTIF($C$3:C254, C254)>1, \"\", C254))","v":""},{"$f":"IF(E254=\"\",\"\",CONCATENATE(DIGITADOR!$M$1,E254,F254))","v":""},"",null,{"$f":"IF(G254=\"\",\"\",VLOOKUP(G254,referentes!$J$2:$M$26,3,FALSE))","v":""},null,""]
[null,{"$f":"IF(C255=\"\",\"\",IF(COUNTIF($C$3:C255, C255)>1, \"\", C255))","v":""},{"$f":"IF(E255=\"\",\"\",CONCATENATE(DIGITADOR!$M$1,E255,F255))","v":""},"",null,{"$f":"IF(G255=\"\",\"\",VLOOKUP(G255,referentes!$J$2:$M$26,3,FALSE))","v":""},null,""]
[null,{"$f":"IF(C256=\"\",\"\",IF(COUNTIF($C$3:C256, C256)>1, \"\", C256))","v":""},{"$f":"IF(E256=\"\",\"\",CONCATENATE(DIGITADOR!$M$1,E256,F256))","v":""},"",null,{"$f":"IF(G256=\"\",\"\",VLOOKUP(G256,referentes!$J$2:$M$26,3,FALSE))","v":""},null,""]
[null,{"$f":"IF(C257=\"\",\"\",IF(COUNTIF($C$3:C257, C257)>1, \"\", C257))","v":""},{"$f":"IF(E257=\"\",\"\",CONCATENATE(DIGITADOR!$M$1,E257,F257))","v":""},"",null,{"$f":"IF(G257=\"\",\"\",VLOOKUP(G257,referentes!$J$2:$M$26,3,FALSE))","v":""},null,""]
[null,{"$f":"IF(C258=\"\",\"\",IF(COUNTIF($C$3:C258, C258)>1, \"\", C258))","v":""},{"$f":"IF(E258=\"\",\"\",CONCATENATE(DIGITADOR!$M$1,E258,F258))","v":""},"",null,{"$f":"IF(G258=\"\",\"\",VLOOKUP(G258,referentes!$J$2:$M$26,3,FALSE))","v":""},null,""]
[null,{"$f":"IF(C259=\"\",\"\",IF(COUNTIF($C$3:C259, C259)>1, \"\", C259))","v":""},{"$f":"IF(E259=\"\",\"\",CONCATENATE(DIGITADOR!$M$1,E259,F259))","v":""},"",null,{"$f":"IF(G259=\"\",\"\",VLOOKUP(G259,referentes!$J$2:$M$26,3,FALSE))","v":""},null,""]
[null,{"$f":"IF(C260=\"\",\"\",IF(COUNTIF($C$3:C260, C260)>1, \"\", C260))","v":""},{"$f":"IF(E260=\"\",\"\",CONCATENATE(DIGITADOR!$M$1,E260,F260))","v":""},{"$f":"IF(C260=\"\",\"\",CONCATENATE(C260,ROW()-2))","v":""},null,{"$f":"IF(G260=\"\",\"\",VLOOKUP(G260,referentes!$J$2:$M$26,3,FALSE))","v":""},null,{"$f":"IF(ISNUMBER(SEARCH(\"1\",G260))=TRUE,\"4501\",\n  IF(ISNUMBER(SEARCH(\"2\",G260))=TRUE,\"4502\",\n  IF(ISNUMBER(SEARCH(\"3\",G260))=TRUE,\"4503\",\"\"))\n)","v":""}]
[null,{"$f":"IF(C261=\"\",\"\",IF(COUNTIF($C$3:C261, C261)>1, \"\", C261))","v":""},{"$f":"IF(E261=\"\",\"\",CONCATENATE(DIGITADOR!$M$1,E261,F261))","v":""},"",null,{"$f":"IF(G261=\"\",\"\",VLOOKUP(G261,referentes!$J$2:$M$26,3,FALSE))","v":""},null,""]
[null,{"$f":"IF(C262=\"\",\"\",IF(COUNTIF($C$3:C262, C262)>1, \"\", C262))","v":""},{"$f":"IF(E262=\"\",\"\",CONCATENATE(DIGITADOR!$M$1,E262,F262))","v":""},"",null,{"$f":"IF(G262=\"\",\"\",VLOOKUP(G262,referentes!$J$2:$M$26,3,FALSE))","v":""},null,""]
[null,{"$f":"IF(C263=\"\",\"\",IF(COUNTIF($C$3:C263, C263)>1, \"\", C263))","v":""},{"$f":"IF(E263=\"\",\"\",CONCATENATE(DIGITADOR!$M$1,E263,F263))","v":""},"",null,{"$f":"IF(G263=\"\",\"\",VLOOKUP(G263,referentes!$J$2:$M$26,3,FALSE))","v":""},null,""]
[null,{"$f":"IF(C264=\"\",\"\",IF(COUNTIF($C$3:C264, C264)>1, \"\", C264))","v":""},{"$f":"IF(E264=\"\",\"\",CONCATENATE(DIGITADOR!$M$1,E264,F264))","v":""},"",null,{"$f":"IF(G264=\"\",\"\",VLOOKUP(G264,referentes!$J$2:$M$26,3,FALSE))","v":""},null,""]
[null,{"$f":"IF(C265=\"\",\"\",IF(COUNTIF($C$3:C265, C265)>1, \"\", C265))","v":""},{"$f":"IF(E265=\"\",\"\",CONCATENATE(DIGITADOR!$M$1,E265,F265))","v":""},"",null,{"$f":"IF(G265=\"\",\"\",VLOOKUP(G265,referentes!$J$2:$M$26,3,FALSE))","v":""},null,""]
[null,{"$f":"IF(C266=\"\",\"\",IF(COUNTIF($C$3:C266, C266)>1, \"\", C266))","v":""},{"$f":"IF(E266=\"\",\"\",CONCATENATE(DIGITADOR!$M$1,E266,F266))","v":""},"",null,{"$f":"IF(G266=\"\",\"\",VLOOKUP(G266,referentes!$J$2:$M$26,3,FALSE))","v":""},null,""]
[null,{"$f":"IF(C267=\"\",\"\",IF(COUNTIF($C$3:C267, C267)>1, \"\", C267))","v":""},{"$f":"IF(E267=\"\",\"\",CONCATENATE(DIGITADOR!$M$1,E267,F267))","v":""},"",null,{"$f":"IF(G267=\"\",\"\",VLOOKUP(G267,referentes!$J$2:$M$26,3,FALSE))","v":""},null,""]
[null,{"$f":"IF(C268=\"\",\"\",IF(COUNTIF($C$3:C268, C268)>1, \"\", C268))","v":""},{"$f":"IF(E268=\"\",\"\",CONCATENATE(DIGITADOR!$M$1,E268,F268))","v":""},"",null,{"$f":"IF(G268=\"\",\"\",VLOOKUP(G268,referentes!$J$2:$M$26,3,FALSE))","v":""},null,""]
[null,{"$f":"IF(C269=\"\",\"\",IF(COUNTIF($C$3:C269, C269)>1, \"\", C269))","v":""},{"$f":"IF(E269=\"\",\"\",CONCATENATE(DIGITADOR!$M$1,E269,F269))","v":""},"",null,{"$f":"IF(G269=\"\",\"\",VLOOKUP(G269,referentes!$J$2:$M$26,3,FALSE))","v":""},null,""]
[null,{"$f":"IF(C270=\"\",\"\",IF(COUNTIF($C$3:C270, C270)>1, \"\", C270))","v":""},{"$f":"IF(E270=\"\",\"\",CONCATENATE(DIGITADOR!$M$1,E270,F270))","v":""},"",null,{"$f":"IF(G270=\"\",\"\",VLOOKUP(G270,referentes!$J$2:$M$26,3,FALSE))","v":""},null,""]
[null,{"$f":"IF(C271=\"\",\"\",IF(COUNTIF($C$3:C271, C271)>1, \"\", C271))","v":""},{"$f":"IF(E271=\"\",\"\",CONCATENATE(DIGITADOR!$M$1,E271,F271))","v":""},"",null,{"$f":"IF(G271=\"\",\"\",VLOOKUP(G271,referentes!$J$2:$M$26,3,FALSE))","v":""},null,""]
[null,{"$f":"IF(C272=\"\",\"\",IF(COUNTIF($C$3:C272, C272)>1, \"\", C272))","v":""},{"$f":"IF(E272=\"\",\"\",CONCATENATE(DIGITADOR!$M$1,E272,F272))","v":""},"",null,{"$f":"IF(G272=\"\",\"\",VLOOKUP(G272,referentes!$J$2:$M$26,3,FALSE))","v":""},null,""]
[null,{"$f":"IF(C273=\"\",\"\",IF(COUNTIF($C$3:C273, C273)>1, \"\", C273))","v":""},{"$f":"IF(E273=\"\",\"\",CONCATENATE(DIGITADOR!$M$1,E273,F273))","v":""},"",null,{"$f":"IF(G273=\"\",\"\",VLOOKUP(G273,referentes!$J$2:$M$26,3,FALSE))","v":""},null,""]
[null,{"$f":"IF(C274=\"\",\"\",IF(COUNTIF($C$3:C274, C274)>1, \"\", C274))","v":""},{"$f":"IF(E274=\"\",\"\",CONCATENATE(DIGITADOR!$M$1,E274,F274))","v":""},"",null,{"$f":"IF(G274=\"\",\"\",VLOOKUP(G274,referentes!$J$2:$M$26,3,FALSE))","v":""},null,""]
[null,{"$f":"IF(C275=\"\",\"\",IF(COUNTIF($C$3:C275, C275)>1, \"\", C275))","v":""},{"$f":"IF(E275=\"\",\"\",CONCATENATE(DIGITADOR!$M$1,E275,F275))","v":""},"",null,{"$f":"IF(G275=\"\",\"\",VLOOKUP(G275,referentes!$J$2:$M$26,3,FALSE))","v":""},null,""]
[null,{"$f":"IF(C276=\"\",\"\",IF(COUNTIF($C$3:C276, C276)>1, \"\", C276))","v":""},{"$f":"IF(E276=\"\",\"\",CONCATENATE(DIGITADOR!$M$1,E276,F276))","v":""},"",null,{"$f":"IF(G276=\"\",\"\",VLOOKUP(G276,referentes!$J$2:$M$26,3,FALSE))","v":""},null,""]
[null,{"$f":"IF(C277=\"\",\"\",IF(COUNTIF($C$3:C277, C277)>1, \"\", C277))","v":""},{"$f":"IF(E277=\"\",\"\",CONCATENATE(DIGITADOR!$M$1,E277,F277))","v":""},"",null,{"$f":"IF(G277=\"\",\"\",VLOOKUP(G277,referentes!$J$2:$M$26,3,FALSE))","v":""},null,""]
[null,{"$f":"IF(C278=\"\",\"\",IF(COUNTIF($C$3:C278, C278)>1, \"\", C278))","v":""},{"$f":"IF(E278=\"\",\"\",CONCATENATE(DIGITADOR!$M$1,E278,F278))","v":""},"",null,{"$f":"IF(G278=\"\",\"\",VLOOKUP(G278,referentes!$J$2:$M$26,3,FALSE))","v":""},null,""]
[null,{"$f":"IF(C279=\"\",\"\",IF(COUNTIF($C$3:C279, C279)>1, \"\", C279))","v":""},{"$f":"IF(E279=\"\",\"\",CONCATENATE(DIGITADOR!$M$1,E279,F279))","v":""},"",null,{"$f":"IF(G279=\"\",\"\",VLOOKUP(G279,referentes!$J$2:$M$26,3,FALSE))","v":""},null,""]
[null,{"$f":"IF(C280=\"\",\"\",IF(COUNTIF($C$3:C280, C280)>1, \"\", C280))","v":""},{"$f":"IF(E280=\"\",\"\",CONCATENATE(DIGITADOR!$M$1,E280,F280))","v":""},"",null,{"$f":"IF(G280=\"\",\"\",VLOOKUP(G280,referentes!$J$2:$M$26,3,FALSE))","v":""},null,""]
[null,{"$f":"IF(C281=\"\",\"\",IF(COUNTIF($C$3:C281, C281)>1, \"\", C281))","v":""},{"$f":"IF(E281=\"\",\"\",CONCATENATE(DIGITADOR!$M$1,E281,F281))","v":""},"",null,{"$f":"IF(G281=\"\",\"\",VLOOKUP(G281,referentes!$J$2:$M$26,3,FALSE))","v":""},null,""]
[null,{"$f":"IF(C282=\"\",\"\",IF(COUNTIF($C$3:C282, C282)>1, \"\", C282))","v":""},{"$f":"IF(E282=\"\",\"\",CONCATENATE(DIGITADOR!$M$1,E282,F282))","v":""},"",null,{"$f":"IF(G282=\"\",\"\",VLOOKUP(G282,referentes!$J$2:$M$26,3,FALSE))","v":""},null,""]
[null,{"$f":"IF(C283=\"\",\"\",IF(COUNTIF($C$3:C283, C283)>1, \"\", C283))","v":""},{"$f":"IF(E283=\"\",\"\",CONCATENATE(DIGITADOR!$M$1,E283,F283))","v":""},"",null,{"$f":"IF(G283=\"\",\"\",VLOOKUP(G283,referentes!$J$2:$M$26,3,FALSE))","v":""},null,""]
[null,{"$f":"IF(C284=\"\",\"\",IF(COUNTIF($C$3:C284, C284)>1, \"\", C284))","v":""},{"$f":"IF(E284=\"\",\"\",CONCATENATE(DIGITADOR!$M$1,E284,F284))","v":""},"",null,{"$f":"IF(G284=\"\",\"\",VLOOKUP(G284,referentes!$J$2:$M$26,3,FALSE))","v":""},null,""]
[null,{"$f":"IF(C285=\"\",\"\",IF(COUNTIF($C$3:C285, C285)>1, \"\", C285))","v":""},{"$f":"IF(E285=\"\",\"\",CONCATENATE(DIGITADOR!$M$1,E285,F285))","v":""},"",null,{"$f":"IF(G285=\"\",\"\",VLOOKUP(G285,referentes!$J$2:$M$26,3,FALSE))","v":""},null,""]
[null,{"$f":"IF(C286=\"\",\"\",IF(COUNTIF($C$3:C286, C286)>1, \"\", C286))","v":""},{"$f":"IF(E286=\"\",\"\",CONCATENATE(DIGITADOR!$M$1,E286,F286))","v":""},"",null,{"$f":"IF(G286=\"\",\"\",VLOOKUP(G286,referentes!$J$2:$M$26,3,FALSE))","v":""},null,""]
[null,{"$f":"IF(C287=\"\",\"\",IF(COUNTIF($C$3:C287, C287)>1, \"\", C287))","v":""},{"$f":"IF(E287=\"\",\"\",CONCATENATE(DIGITADOR!$M$1,E287,F287))","v":""},"",null,{"$f":"IF(G287=\"\",\"\",VLOOKUP(G287,referentes!$J$2:$M$26,3,FALSE))","v":""},null,""]
[null,{"$f":"IF(C288=\"\",\"\",IF(COUNTIF($C$3:C288, C288)>1, \"\", C288))","v":""},{"$f":"IF(E288=\"\",\"\",CONCATENATE(DIGITADOR!$M$1,E288,F288))","v":""},"",null,{"$f":"IF(G288=\"\",\"\",VLOOKUP(G288,referentes!$J$2:$M$26,3,FALSE))","v":""},null,""]
[null,{"$f":"IF(C289=\"\",\"\",IF(COUNTIF($C$3:C289, C289)>1, \"\", C289))","v":""},{"$f":"IF(E289=\"\",\"\",CONCATENATE(DIGITADOR!$M$1,E289,F289))","v":""},"",null,{"$f":"IF(G289=\"\",\"\",VLOOKUP(G289,referentes!$J$2:$M$26,3,FALSE))","v":""},null,""]
[null,{"$f":"IF(C290=\"\",\"\",IF(COUNTIF($C$3:C290, C290)>1, \"\", C290))","v":""},{"$f":"IF(E290=\"\",\"\",CONCATENATE(DIGITADOR!$M$1,E290,F290))","v":""},"",null,{"$f":"IF(G290=\"\",\"\",VLOOKUP(G290,referentes!$J$2:$M$26,3,FALSE))","v":""},null,""]
[null,{"$f":"IF(C291=\"\",\"\",IF(COUNTIF($C$3:C291, C291)>1, \"\", C291))","v":""},{"$f":"IF(E291=\"\",\"\",CONCATENATE(DIGITADOR!$M$1,E291,F291))","v":""},"",null,{"$f":"IF(G291=\"\",\"\",VLOOKUP(G291,referentes!$J$2:$M$26,3,FALSE))","v":""},null,""]
[null,{"$f":"IF(C292=\"\",\"\",IF(COUNTIF($C$3:C292, C292)>1, \"\", C292))","v":""},{"$f":"IF(E292=\"\",\"\",CONCATENATE(DIGITADOR!$M$1,E292,F292))","v":""},"",null,{"$f":"IF(G292=\"\",\"\",VLOOKUP(G292,referentes!$J$2:$M$26,3,FALSE))","v":""},null,""]
[null,{"$f":"IF(C293=\"\",\"\",IF(COUNTIF($C$3:C293, C293)>1, \"\", C293))","v":""},{"$f":"IF(E293=\"\",\"\",CONCATENATE(DIGITADOR!$M$1,E293,F293))","v":""},"",null,{"$f":"IF(G293=\"\",\"\",VLOOKUP(G293,referentes!$J$2:$M$26,3,FALSE))","v":""},null,""]
[null,{"$f":"IF(C294=\"\",\"\",IF(COUNTIF($C$3:C294, C294)>1, \"\", C294))","v":""},{"$f":"IF(E294=\"\",\"\",CONCATENATE(DIGITADOR!$M$1,E294,F294))","v":""},"",null,{"$f":"IF(G294=\"\",\"\",VLOOKUP(G294,referentes!$J$2:$M$26,3,FALSE))","v":""},null,""]
[null,{"$f":"IF(C295=\"\",\"\",IF(COUNTIF($C$3:C295, C295)>1, \"\", C295))","v":""},{"$f":"IF(E295=\"\",\"\",CONCATENATE(DIGITADOR!$M$1,E295,F295))","v":""},"",null,{"$f":"IF(G295=\"\",\"\",VLOOKUP(G295,referentes!$J$2:$M$26,3,FALSE))","v":""},null,""]
[null,{"$f":"IF(C296=\"\",\"\",IF(COUNTIF($C$3:C296, C296)>1, \"\", C296))","v":""},{"$f":"IF(E296=\"\",\"\",CONCATENATE(DIGITADOR!$M$1,E296,F296))","v":""},"",null,{"$f":"IF(G296=\"\",\"\",VLOOKUP(G296,referentes!$J$2:$M$26,3,FALSE))","v":""},null,""]
[null,{"$f":"IF(C297=\"\",\"\",IF(COUNTIF($C$3:C297, C297)>1, \"\", C297))","v":""},{"$f":"IF(E297=\"\",\"\",CONCATENATE(DIGITADOR!$M$1,E297,F297))","v":""},"",null,{"$f":"IF(G297=\"\",\"\",VLOOKUP(G297,referentes!$J$2:$M$26,3,FALSE))","v":""},null,""]
[null,{"$f":"IF(C298=\"\",\"\",IF(COUNTIF($C$3:C298, C298)>1, \"\", C298))","v":""},{"$f":"IF(E298=\"\",\"\",CONCATENATE(DIGITADOR!$M$1,E298,F298))","v":""},"",null,{"$f":"IF(G298=\"\",\"\",VLOOKUP(G298,referentes!$J$2:$M$26,3,FALSE))","v":""},null,""]
[null,{"$f":"IF(C299=\"\",\"\",IF(COUNTIF($C$3:C299, C299)>1, \"\", C299))","v":""},{"$f":"IF(E299=\"\",\"\",CONCATENATE(DIGITADOR!$M$1,E299,F299))","v":""},"",null,{"$f":"IF(G299=\"\",\"\",VLOOKUP(G299,referentes!$J$2:$M$26,3,FALSE))","v":""},null,""]
[null,{"$f":"IF(C300=\"\",\"\",IF(COUNTIF($C$3:C300, C300)>1, \"\", C300))","v":""},{"$f":"IF(E300=\"\",\"\",CONCATENATE(DIGITADOR!$M$1,E300,F300))","v":""},"",null,{"$f":"IF(G300=\"\",\"\",VLOOKUP(G300,referentes!$J$2:$M$26,3,FALSE))","v":""},null,""]
[null,{"$f":"IF(C301=\"\",\"\",IF(COUNTIF($C$3:C301, C301)>1, \"\", C301))","v":""},{"$f":"IF(E301=\"\",\"\",CONCATENATE(DIGITADOR!$M$1,E301,F301))","v":""},"",null,{"$f":"IF(G301=\"\",\"\",VLOOKUP(G301,referentes!$J$2:$M$26,3,FALSE))","v":""},null,""]
[null,{"$f":"IF(C302=\"\",\"\",IF(COUNTIF($C$3:C302, C302)>1, \"\", C302))","v":""},{"$f":"IF(E302=\"\",\"\",CONCATENATE(DIGITADOR!$M$1,E302,F302))","v":""},"",null,{"$f":"IF(G302=\"\",\"\",VLOOKUP(G302,referentes!$J$2:$M$26,3,FALSE))","v":""},null,""]
[null,{"$f":"IF(C303=\"\",\"\",IF(COUNTIF($C$3:C303, C303)>1, \"\", C303))","v":""},{"$f":"IF(E303=\"\",\"\",CONCATENATE(DIGITADOR!$M$1,E303,F303))","v":""},"",null,{"$f":"IF(G303=\"\",\"\",VLOOKUP(G303,referentes!$J$2:$M$26,3,FALSE))","v":""},null,""]

{"sheet":"referentes","index":4,"n_rows":140,"n_cols":36,"rows_kept":140,"cut":false,"hidden":false,"merged":[]}
["AG_LOV",3060,null,"cod_letras","descripcion",null,"phylum","clase","orden","familia","genero",null,null,null,null,null,null,null,"secuencia_loc","prefijo_cdg_est_loc","codigo_estacion_loc","descripcion_estacion_loc","lugar"]
[4501,"Inicial",null,null,null,"clave_sibm",null,null,null,"CNG-PFISP1","4718921PFISP",56731,1,null,3546,"Administrador SIGMA",null,null,55958,"Bahia_Cocinetas",96321,null,"Bahia Cocinetas1",null,3546,"Administrador SIGMA",null,null,null,null,null,null,null,null,"AD Pto. Moin C.R.","Administración Desarrollo Complejo Portuario  Limón Moin Costa Rica"]
[4502,"Media",null,null,null,null,null,null,null,"CNG-PFISP2","4718921PFISP",56732,2,null,3444,"Alexandra Rodríguez",null,null,55957,"Bahia_Hondita",96321,null,"Bahia Hondita1",null,3444,"Alexandra Rodríguez",null,null,"AD Pto. Moin C.R.","Administración Desarrollo Complejo Portuario  Limón Moin Costa Rica",null,null,null,null,"ANADARKO","Anadarko Colombia Company"]
[4503,"Final",null,null,null,null,null,null,null,"CNG-PFISP3","4718921PFISP",56733,3,null,8258,"Daniel Fernando Jiménez Rincón",null,null,55959,"Bahia_Tukakas",96321,null,"Bahia Tukakaspl1",null,8258,"Daniel Fernando Jiménez Rincón",null,null,"ANADARKO","Anadarko Colombia Company",null,null,null,null,"AQUABIOSFERA","Aquabiosfera SAS"]
[null,null,null,null,null,null,null,null,null,"CTRY-PFISP1","2357431PFISP",56740,1,null,8378,"David Alejandro Navarrete Rodríguez",null,null,55967,"Boca_Laenea1",96321,null,"Boca La enea1",null,8378,"David Alejandro Navarrete Rodríguez",null,null,"AQUABIOSFERA","Aquabiosfera SAS",null,null,null,null,"CALIDRIS","Asociación Calidris"]
[null,null,null,null,null,null,null,null,null,"CTRY-PFISP2","2357431PFISP",56741,2,null,4918,"Edgar Fernando Dorado Roncancio",null,null,55968,"Boca_Laenea2",96321,null,"Boca La enea2",null,4918,"Edgar Fernando Dorado Roncancio",null,null,"CALIDRIS","Asociación Calidris",null,null,null,null,"ASOCARS","Asociación de Corporaciones Autónomas Regionales"]
[null,null,null,null,null,null,null,null,null,"CTRY-PFISP3","2357431PFISP",56742,3,null,3403,"Eliana Marcela Barrios Vasquez",null,null,56558,"Bocas_Atrato",96321,null,"Bocas del Atrato1",null,3403,"Eliana Marcela Barrios Vasquez",null,null,"ASOCARS","Asociación de Corporaciones Autónomas Regionales",null,null,null,null,"ANLA","Autoridad Nacional de Licencias Ambientales"]
[null,null,null,null,null,null,null,null,null,"LNA-PFISP1","4400113PFISP",56728,1,null,7840,"Fair Fernando Dager Osorio",null,null,55972,"Broqueles",96321,null,"Broqueles1",null,7840,"Fair Fernando Dager Osorio",null,null,"ANLA","Autoridad Nacional de Licencias Ambientales",null,null,null,null,"ARAP","Autoridad de Recursos Acuáticos de Panamá"]
[null,null,null,null,null,null,null,null,null,"LNA-PFISP2","4400113PFISP",56729,2,null,5685,"Henry Fabian Bustos Ordoñez",null,null,57245,"Buenavista1",96321,null,"Buenavista1",null,5685,"Henry Fabian Bustos Ordoñez",null,null,"ARAP","Autoridad de Recursos Acuáticos de Panamá",null,null,null,null,"CWOP","Caribbean-Wide Orca Project"]
[null,null,null,null,null,null,null,null,null,"LNA-PFISP3","4400113PFISP",56730,3,null,7841,"Jean David Varilla Gonzalez",null,null,57246,"Buenavista2",96321,null,"Buenavista2",null,7841,"Jean David Varilla Gonzalez",null,null,"CWOP","Caribbean-Wide Orca Project",null,null,null,null,"CEAC","Centro de Estudios Ambientales de Cienfuegos"]
[null,null,null,null,null,null,null,null,null,"MRT-PFISP1","0583739PFISP",56746,1,null,8277,"Jeffry Bolaños",null,null,56551,"Camaronera",96321,null,"Camaronera1",null,8277,"Jeffry Bolaños",null,null,"CEAC","Centro de Estudios Ambientales de Cienfuegos",null,null,null,null,"CECIMAR","Centro de Estudios en Ciencias del Mar - Universidad Nacional"]
[null,null,null,null,null,null,null,null,null,"MRT-PFISP2","0583739PFISP",56747,2,null,8263,"Johan Casadiego Estévez",null,null,55970,"Cristo_Rey",96321,null,"Cristo Rey1",null,8263,"Johan Casadiego Estévez",null,null,"CECIMAR","Centro de Estudios en Ciencias del Mar - Universidad Nacional",null,null,null,null,"CIEMAT","Centro de Investigaciones Energéticas, Medioambientales y Tecnológicas"]
[null,null,null,null,null,null,null,null,null,"MRT-PFISP3","0583739PFISP",56748,3,null,7141,"Juan Camilo Rodríguez Atara",null,null,55961,"Dibulla1_Occidente",96321,null,"Dibulla1 Occidente -Rio Jerez",null,7141,"Juan Camilo Rodríguez Atara",null,null,"CIEMAT","Centro de Investigaciones Energéticas, Medioambientales y Tecnológicas",null,null,null,null,"CIOH","Centro de Investigaciones Oceanográficas e Hidrográficas"]
[null,null,null,null,null,null,null,null,null,"PBL-PFISP1","2367246PFISP",56737,1,null,8264,"Juan Fernando Cortina Munera",null,null,55962,"Dibulla2_Occidente",96321,null,"Dibulla2 Occidente -Rio Jerez",null,8264,"Juan Fernando Cortina Munera",null,null,"CIOH","Centro de Investigaciones Oceanográficas e Hidrográficas",null,null,null,null,"C.C.C.P.","Centro de Investigaciones Oceanográficas e Hidrográficas del Pacífico"]
[null,null,null,null,null,null,null,null,null,"PBL-PFISP2","2367246PFISP",56738,2,null,8217,"Juan Lazarus",null,null,55974,"Laguna_Bocacorea",96321,null,"Laguna Bocacorea1",null,8217,"Juan Lazarus",null,null,"C.C.C.P.","Centro de Investigaciones Oceanográficas e Hidrográficas del Pacífico",null,null,null,null,"CEINER","Centro de Investigación Educación y Recreación Islas del Rosario"]
[null,null,null,null,null,null,null,null,null,"PBL-PFISP3","2367246PFISP",56739,3,null,8265,"Kevin Samuel Moreno",null,null,56887,"4484701OCEA",100,null,"PMO - BAHIA COCINETAS",null,8265,"Kevin Samuel Moreno",null,null,"CEINER","Centro de Investigación Educación y Recreación Islas del Rosario",null,null,null,null,"CIRA","Centro de Investigación de los Recursos Acuáticos de Nicaragua (CIRA)"]
[null,null,null,null,null,null,null,null,null,"PVJ-PFISP1","4757022PFISP",56734,1,null,8377,"Lady Liliana Espinosa Leal",null,null,56888,"4484703OCEA",100,null,"PMO - BAHIA HONDITA",null,8377,"Lady Liliana Espinosa Leal",null,null,"CIRA","Centro de Investigación de los Recursos Acuáticos de Nicaragua (CIRA)",null,null,null,null,"CICA","Centro de Investigación en Contaminación Ambiental"]
[null,null,null,null,null,null,null,null,null,"PVJ-PFISP2","4757022PFISP",56735,2,null,7757,"Laura  Martínez Lacharme",null,null,56886,"4484702OCEA",100,null,"PMO - BAHIA TUKAKAS",null,7757,"Laura  Martínez Lacharme",null,null,"CICA","Centro de Investigación en Contaminación Ambiental",null,null,null,null,"CRBMUV","Colección de Referencia Biología Marina Universidad del Valle"]
[null,null,null,null,null,null,null,null,null,"PVJ-PFISP3","4757022PFISP",56736,3,null,4227,"Laura Sanchez Valencia",null,null,56921,"0583740OCEA",100,null,"PMO - BAHÍA EL UNO",null,4227,"Laura Sanchez Valencia",null,null,"CRBMUV","Colección de Referencia Biología Marina Universidad del Valle",null,null,null,null,"Coleccion_Personal","Colección personal"]
[null,null,null,null,null,null,null,null,null,"RH-PFISP1","4400112PFISP",56725,1,null,3281,"Leonardo José Arias Alemán (2022)",null,null,56895,"4456009OCEA",100,null,"PMO - BALLENAS",null,3281,"Leonardo José Arias Alemán (2022)",null,null,"Coleccion_Personal","Colección personal",null,null,null,null,"CPPS","Comisión Permanente del Pacífico Sur"]
[null,null,null,null,null,null,null,null,null,"RH-PFISP2","4400112PFISP",56726,2,null,8099,"Marco Elias Gonzalez Arteaga",null,null,56902,"4409015OCEA",100,null,"PMO - BELLO HORIZONTE",null,8099,"Marco Elias Gonzalez Arteaga",null,null,"CPPS","Comisión Permanente del Pacífico Sur",null,null,null,null,"CI","Conservación Internacional Colombia "]
[null,null,null,null,null,null,null,null,null,"RH-PFISP3","4400112PFISP",56727,3,null,7197,"Miller Jose Florian Sanchez",null,null,56914,"2350029OCEA",100,null,"PMO - BROQUELES",null,7197,"Miller Jose Florian Sanchez",null,null,"CI","Conservación Internacional Colombia ",null,null,null,null,"CONSULTOR","Consultor independiente "]
[null,null,null,null,null,null,null,null,null,"UVD-PFISP1","0565934PFISP",56743,1,null,8262,"Paula Andrea López Muñoz",null,null,56898,"4456011OCEA",100,null,"PMO - BUENAVISTA",null,8262,"Paula Andrea López Muñoz",null,null,"CONSULTOR","Consultor independiente ",null,null,null,null,"CMS","Consultoria y Monitoreo Ambiental"]
[null,null,null,null,null,null,null,null,null,"UVD-PFISP2","0565934PFISP",56744,2,null,8297,"SARAH DANIELA VELASCO MARULANDA",null,null,56889,"4484704OCEA",100,null,"PMO - CABO DE LA VELA",null,8297,"SARAH DANIELA VELASCO MARULANDA",null,null,"CMS","Consultoria y Monitoreo Ambiental",null,null,null,null,"CVC","Corporacion  Autonoma Regional del Valle del Cauca"]
[null,null,null,null,null,null,null,null,null,"UVD-PFISP3","0565934PFISP",56745,3,null,5745,"Sara Eilyn Guzman Henao",null,null,56890,"4484705OCEA",100,null,"PMO - CARRIZAL",null,5745,"Sara Eilyn Guzman Henao",null,null,"CVC","Corporacion  Autonoma Regional del Valle del Cauca",null,null,null,null,"CORPONARIÑO","Corporacion Autonoma Regional de Nariño"]
[null,null,null,null,null,null,null,null,null,null,null,null,null,null,8266,"Zulay Saudith González Herrera",null,null,56906,"4718921OCEA",100,null,"PMO - CIENAGA",null,8266,"Zulay Saudith González Herrera",null,null,"CORPONARIÑO","Corporacion Autonoma Regional de Nariño",null,null,null,null,"CARSUCRE","Corporacion Autonoma Regional de Sucre"]
[null,null,null,null,null,null,null,null,null,null,null,null,null,null,null,null,null,null,56916,"2357431OCEA",100,null,"PMO - CRISTO REY",null,null,null,null,null,"CARSUCRE","Corporacion Autonoma Regional de Sucre",null,null,null,null,"CRA","Corporacion Autonoma Regional del Atlàntico"]
[null,null,null,null,null,null,null,null,null,null,null,null,null,null,null,null,null,null,56919,"0565934OCEA",100,null,"PMO - DAMAQUIEL",null,null,null,null,null,"CRA","Corporacion Autonoma Regional del Atlàntico",null,null,null,null,"CARDIQUE","Corporacion Autonoma Regional del Canal del Dique"]
[null,null,null,null,null,null,null,null,null,null,null,null,null,null,null,null,null,null,56901,"4409014OCEA",100,null,"PMO - DIBULLA",null,null,null,null,null,"CARDIQUE","Corporacion Autonoma Regional del Canal del Dique",null,null,null,null,"CRC","Corporacion Autonoma Regional del Cauca"]
[null,null,null,null,null,null,null,null,null,null,null,null,null,null,null,null,null,null,56924,"0549036OCEA",100,null,"PMO - ENSENADA RIONEGRO",null,null,null,null,null,"CRC","Corporacion Autonoma Regional del Cauca",null,null,null,null,"CODECHOCO","Corporacion para el Desarrollo Sostenible del Choco"]
[null,null,null,null,null,null,null,null,null,null,null,null,null,null,null,null,null,null,56905,"4700119OCEA",100,null,"PMO - INCA INCA",null,null,null,null,null,"CODECHOCO","Corporacion para el Desarrollo Sostenible del Choco",null,null,null,null,"CORPOGUAJIRA","Corporación Autónoma Regional de la Guajira"]
[null,null,null,null,null,null,null,null,null,null,null,null,null,null,null,null,null,null,56900,"4400113OCEA",100,null,"PMO - LA ENEA",null,null,null,null,null,"CORPOGUAJIRA","Corporación Autónoma Regional de la Guajira",null,null,null,null,"CORALINA","Corporación Autónoma Regional de las Islas de San Andrés, Providencia y Santa Catalina"]
[null,null,null,null,null,null,null,null,null,null,null,null,null,null,null,null,null,null,56912,"2367527OCEA",100,null,"PMO - LAGUNA BOCA COREA",null,null,null,null,null,"CORALINA","Corporación Autónoma Regional de las Islas de San Andrés, Providencia y Santa Catalina",null,null,null,null,"CORPAMAG","Corporación Autónoma Regional del Magdalena"]
[null,null,null,null,null,null,null,null,null,null,null,null,null,null,null,null,null,null,56892,"4456007OCEA",100,null,"PMO - MANAURE",null,null,null,null,null,"CORPAMAG","Corporación Autónoma Regional del Magdalena",null,null,null,null,"CORPOURABA","Corporación Autónoma Regional del Uraba"]
[null,null,null,null,null,null,null,null,null,null,null,null,null,null,null,null,null,null,56923,"0583745OCEA",100,null,"PMO - MATUNTUGO",null,null,null,null,null,"CORPOURABA","Corporación Autónoma Regional del Uraba",null,null,null,null,"CVC-UNPA","Corporación Autónoma Regional del Valle del Cauca-Universidad del Pacifico"]
[null,null,null,null,null,null,null,null,null,null,null,null,null,null,null,null,null,null,56897,"4456010OCEA",100,null,"PMO - MAYAPO 1",null,null,null,null,null,"CVC-UNPA","Corporación Autónoma Regional del Valle del Cauca-Universidad del Pacifico",null,null,null,null,"CORALINA OMACHA","Corporación Coralina - Fundación Omacha"]
[null,null,null,null,null,null,null,null,null,null,null,null,null,null,null,null,null,null,56896,"4456010OCEA",200,null,"PMO - MAYAPO 2",null,null,null,null,null,"CORALINA OMACHA","Corporación Coralina - Fundación Omacha",null,null,null,null,"CORPOURABA - OMACHA","Corporación Corpouraba - Fundación Omacha"]
[null,null,null,null,null,null,null,null,null,null,null,null,null,null,null,null,null,null,56894,"4456008OCEA",100,null,"PMO - MUSICHI 1",null,null,null,null,null,"CORPOURABA - OMACHA","Corporación Corpouraba - Fundación Omacha",null,null,null,null,"CVS","Corporación Regional de Valle del Sinu y San Jorge"]
[null,null,null,null,null,null,null,null,null,null,null,null,null,null,null,null,null,null,56893,"4456008OCEA",200,null,"PMO - MUSICHI 2",null,null,null,null,null,"CVS","Corporación Regional de Valle del Sinu y San Jorge",null,null,null,null,"DADSA","DEPARTAMENT0 ADMiNISTRATIVO DISTRITAL DE SOSTENIBILIDAD AMBIENTAL"]
[null,null,null,null,null,null,null,null,null,null,null,null,null,null,null,null,null,null,56913,"2350028OCEA",100,null,"PMO - PASO NUEVO",null,null,null,null,null,"DADSA","DEPARTAMENT0 ADMiNISTRATIVO DISTRITAL DE SOSTENIBILIDAD AMBIENTAL",null,null,null,null,"DAMARENA","Departamento Administrativo del Medio Ambiente de Cartagena -  EPA Cartagena"]
[null,null,null,null,null,null,null,null,null,null,null,null,null,null,null,null,null,null,56909,"2367246OCEA",100,null,"PMO - PLAYA BLANCA",null,null,null,null,null,"DAMARENA","Departamento Administrativo del Medio Ambiente de Cartagena -  EPA Cartagena",null,null,null,null,"DAMAB","Departamento Técnico Administrativo del Medio Ambiente Barranquilla"]
[null,null,null,null,null,null,null,null,null,null,null,null,null,null,null,null,null,null,56920,"0583739OCEA",100,null,"PMO - PLAYA LA MARTINA",null,null,null,null,null,"DAMAB","Departamento Técnico Administrativo del Medio Ambiente Barranquilla",null,null,null,null,"DIMAR","Dirección General Maritima"]
[null,null,null,null,null,null,null,null,null,null,null,null,null,null,null,null,null,null,56911,"2367525OCEA",100,null,"PMO - PLAYA MIREYA",null,null,null,null,null,"DIMAR","Dirección General Maritima",null,null,null,null,"ECOREEF","ECOREEF Colombia LTDA"]
[null,null,null,null,null,null,null,null,null,null,null,null,null,null,null,null,null,null,56907,"4757022OCEA",100,null,"PMO - PUEBLO VIEJO",null,null,null,null,null,"ECOREEF","ECOREEF Colombia LTDA",null,null,null,null,"ETH Zurich","EIDGENÖSSISCHE TECHNISCHE HOCHSCHULE ZÜRICH (Politécnico)\r\r\nEIDGENÖSSISCHE TECHNISCHE HOCHSCHULE ZÜRICH"]
[null,null,null,null,null,null,null,null,null,null,null,null,null,null,null,null,null,null,56917,"2357432OCEA",100,null,"PMO - PUERTO ESCONDIDO",null,null,null,null,null,"ETH Zurich","EIDGENÖSSISCHE TECHNISCHE HOCHSCHULE ZÜRICH (Politécnico)\r\r\nEIDGENÖSSISCHE TECHNISCHE HOCHSCHULE ZÜRICH",null,null,null,null,"ECOMAR","Ecomar Consultoría  Ambiental S.A.S."]
[null,null,null,null,null,null,null,null,null,null,null,null,null,null,null,null,null,null,56910,"2367224OCEA",100,null,"PMO - PUNTA MESTIZO",null,null,null,null,null,"ECOMAR","Ecomar Consultoría  Ambiental S.A.S.",null,null,null,null,"EPA BUENAVENTURA","Entidad Publica Ambiental Buenaventura"]
[null,null,null,null,null,null,null,null,null,null,null,null,null,null,null,null,null,null,56918,"0505133OCEA",100,null,"PMO - RIO HOBO",null,null,null,null,null,"EPA BARRANQUILLA","Establecimiento Publico Ambiental Barranquilla",null,null,null,null,"EPA","Entidad Publica Ambiental Cartagena"]
[null,null,null,null,null,null,null,null,null,null,null,null,null,null,null,null,null,null,56922,"0583743OCEA",100,null,"PMO - RIO LEON",null,null,null,null,null,"EPA BUENAVENTURA","Establecimiento Publico Ambiental Buenaventura",null,null,null,null,"ZOOCALI","FUNDACIÓN ZOOLÓGICA DE CALI"]
[null,null,null,null,null,null,null,null,null,null,null,null,null,null,null,null,null,null,56899,"4400112OCEA",100,null,"PMO - RIOHACHA",null,null,null,null,null,"EPA CARTAGENA","Establecimiento Publico Ambiental Cartagena",null,null,null,null,"Fundabas","Fundacion Para El Desarrollo De La Biologia Aplicada"]
[null,null,null,null,null,null,null,null,null,null,null,null,null,null,null,null,null,null,56915,"2350030OCEA",100,null,"PMO - RÍO CEDRO",null,null,null,null,null,"ZOOCALI","FUNDACIÓN ZOOLÓGICA DE CALI",null,null,null,null,"F. Bucea Colombia","Fundación Bucea Colombia"]
[null,null,null,null,null,null,null,null,null,null,null,null,null,null,null,null,null,null,56904,"4700118OCEA",100,null,"PMO - SANTA MARTA",null,null,null,null,null,"Fundabas","Fundacion Para El Desarrollo De La Biologia Aplicada",null,null,null,null,"F.CORALES","Fundación Corales de Paz"]
[null,null,null,null,null,null,null,null,null,null,null,null,null,null,null,null,null,null,56891,"4456006OCEA",100,null,"PMO - SANTA ROSA",null,null,null,null,null,"F. Bucea Colombia","Fundación Bucea Colombia",null,null,null,null,"F. Malpelo","Fundación Malpelo / Marviva"]
[null,null,null,null,null,null,null,null,null,null,null,null,null,null,null,null,null,null,56903,"4700117OCEA",100,null,"PMO - TAGANGA",null,null,null,null,null,"F.CORALES","Fundación Corales de Paz",null,null,null,null,"OMACHA","Fundación Omacha"]
[null,null,null,null,null,null,null,null,null,null,null,null,null,null,null,null,null,null,56908,"4757023OCEA",100,null,"PMO - TASAJERA",null,null,null,null,null,"F. Malpelo","Fundación Malpelo / Marviva",null,null,null,null,"OMACHA - OFM","Fundación Omacha - Observadores Fauna Marina"]
[null,null,null,null,null,null,null,null,null,null,null,null,null,null,null,null,null,null,55973,"Paso_Nuevo",96321,null,"Paso Nuevo1",null,null,null,null,null,"OMACHA","Fundación Omacha",null,null,null,null,"OMACHA - OFM - AQUAB","Fundación Omacha - Observadores Fauna Marina - Aquabiosfera"]
[null,null,null,null,null,null,null,null,null,null,null,null,null,null,null,null,null,null,56689,"playa_Mireya",96321,null,"Playa Mireya",null,null,null,null,null,"OMACHA - OFM","Fundación Omacha - Observadores Fauna Marina",null,null,null,null,"Sila Kangama","Fundación Sila Kangama"]
[null,null,null,null,null,null,null,null,null,null,null,null,null,null,null,null,null,null,55969,"Puerto_Escondido",96321,null,"Puerto Escondido1",null,null,null,null,null,"OMACHA - OFM - AQUAB","Fundación Omacha - Observadores Fauna Marina - Aquabiosfera",null,null,null,null,"CIAA-UJTL","Fundación Universidad Jorge Tadeo Lozano - Centro de Investigaciones y Asesorías Agroindustriales,"]
[null,null,null,null,null,null,null,null,null,null,null,null,null,null,null,null,null,null,55975,"Punta_Mestizos",96321,null,"Punta Mestizo1",null,null,null,null,null,"Sila Kangama","Fundación Sila Kangama",null,null,null,null,"UJTL","Fundación Universidad de Bogotá Jorge Tadeo Lozano"]
[null,null,null,null,null,null,null,null,null,null,null,null,null,null,null,null,null,null,55960,"Rincon_Mosquito",96321,null,"Rincon Mosquito - Bello Horizonte",null,null,null,null,null,"CIAA-UJTL","Fundación Universidad Jorge Tadeo Lozano - Centro de Investigaciones y Asesorías Agroindustriales,",null,null,null,null,"CERG","Geochemical & Environmental Research Group"]
[null,null,null,null,null,null,null,null,null,null,null,null,null,null,null,null,null,null,55971,"Rio_Cedro",96321,null,"Rio Cedro1",null,null,null,null,null,"UJTL","Fundación Universidad de Bogotá Jorge Tadeo Lozano",null,null,null,null,"IED_San José","INSTITUCIÓN EDUCATIVA DEPARTAMENTAL SAN JOSÉ"]
[null,null,null,null,null,null,null,null,null,null,null,null,null,null,null,null,null,null,55978,"Rio_Currulao",96321,null,"Rio Currulao1",null,null,null,null,null,"CERG","Geochemical & Environmental Research Group",null,null,null,null,"IRD","Institut de Recherche pour le Developpement"]
[null,null,null,null,null,null,null,null,null,null,null,null,null,null,null,null,null,null,55983,"Rio_Hobo",96321,null,"Rio Jobo1",null,null,null,null,null,"IED_San José","INSTITUCIÓN EDUCATIVA DEPARTAMENTAL SAN JOSÉ",null,null,null,null,"COLCIENCIAS","Instituto Colombiano para el Desarrollo de la Ciencia y la Tecnología"]
[null,null,null,null,null,null,null,null,null,null,null,null,null,null,null,null,null,null,null,null,null,null,null,null,null,null,null,null,"IRD","Institut de Recherche pour le Developpement",null,null,null,null,"ICAL","Instituto Colombo Alemán de Investigaciones Científicas de Punta de Betín"]
[null,null,null,null,null,null,null,null,null,null,null,null,null,null,null,null,null,null,null,null,null,null,null,null,null,null,null,null,"COLCIENCIAS","Instituto Colombiano para el Desarrollo de la Ciencia y la Tecnología",null,null,null,null,"INVEMAR - OMACHA","Instituto INVEMAR - Fundación Omacha"]
[null,null,null,null,null,null,null,null,null,null,null,null,null,null,null,null,null,null,null,null,null,null,null,null,null,null,null,null,"ICAL","Instituto Colombo Alemán de Investigaciones Científicas de Punta de Betín",null,null,null,null,"INDERENA","Instituto Nacional de los Recursos Naturales Renovables y del Ambiente"]
[null,null,null,null,null,null,null,null,null,null,null,null,null,null,null,null,null,null,null,null,null,null,null,null,null,null,null,null,"INVEMAR - OMACHA","Instituto INVEMAR - Fundación Omacha",null,null,null,null,"ICML","Instituto de Ciencias del Mar y Limnología (ICML)"]
[null,null,null,null,null,null,null,null,null,null,null,null,null,null,null,null,null,null,null,null,null,null,null,null,null,null,null,null,"INDERENA","Instituto Nacional de los Recursos Naturales Renovables y del Ambiente",null,null,null,null,"IIAP","Instituto de Investigaciones Ambientales del Pacifico"]
[null,null,null,null,null,null,null,null,null,null,null,null,null,null,null,null,null,null,null,null,null,null,null,null,null,null,null,null,"ICML","Instituto de Ciencias del Mar y Limnología (ICML)",null,null,null,null,"INVEMAR","Instituto de Investigaciones Marinas y Costeras"]
[null,null,null,null,null,null,null,null,null,null,null,null,null,null,null,null,null,null,null,null,null,null,null,null,null,null,null,null,"IIAP","Instituto de Investigaciones Ambientales del Pacifico",null,null,null,null,"INVEMAR-AGR","Instituto de Investigaciones Marinas y Costeras - AGR"]
[null,null,null,null,null,null,null,null,null,null,null,null,null,null,null,null,null,null,null,null,null,null,null,null,null,null,null,null,"INVEMAR","Instituto de Investigaciones Marinas y Costeras",null,null,null,null,"INVEMAR-BVT","Instituto de Investigaciones Marinas y Costeras - BVT"]
[null,null,null,null,null,null,null,null,null,null,null,null,null,null,null,null,null,null,null,null,null,null,null,null,null,null,null,null,"INVEMAR-AGR","Instituto de Investigaciones Marinas y Costeras - AGR",null,null,null,null,"INVEMAR-CPT","Instituto de Investigaciones Marinas y Costeras - CPT"]
[null,null,null,null,null,null,null,null,null,null,null,null,null,null,null,null,null,null,null,null,null,null,null,null,null,null,null,null,"INVEMAR-BVT","Instituto de Investigaciones Marinas y Costeras - BVT",null,null,null,null,"IAvH","Instituto de Investigación Recursos Biológicos Alexander von Humboldt"]
[null,null,null,null,null,null,null,null,null,null,null,null,null,null,null,null,null,null,null,null,null,null,null,null,null,null,null,null,"INVEMAR-CPT","Instituto de Investigaciones Marinas y Costeras - CPT",null,null,null,null,"IDO_Cuba","Instituto de Oceanologia Cuba"]
[null,null,null,null,null,null,null,null,null,null,null,null,null,null,null,null,null,null,null,null,null,null,null,null,null,null,null,null,"IAvH","Instituto de Investigación Recursos Biológicos Alexander von Humboldt",null,null,null,null,"IATTC","Inter-American Tropical Tuna Commission"]
[null,null,null,null,null,null,null,null,null,null,null,null,null,null,null,null,null,null,null,null,null,null,null,null,null,null,null,null,"IDO_Cuba","Instituto de Oceanologia Cuba",null,null,null,null,"LABORMAR","Laboratorio Microbiológico Ortiz Martinez "]
[null,null,null,null,null,null,null,null,null,null,null,null,null,null,null,null,null,null,null,null,null,null,null,null,null,null,null,null,"IATTC","Inter-American Tropical Tuna Commission",null,null,null,null,"Literature report","Literature report"]
[null,null,null,null,null,null,null,null,null,null,null,null,null,null,null,null,null,null,null,null,null,null,null,null,null,null,null,null,"LABORMAR","Laboratorio Microbiológico Ortiz Martinez ",null,null,null,null,"MCS Consultoría","MCS Consultoría y Monitoreo ambiental S.A.S"]
[null,null,null,null,null,null,null,null,null,null,null,null,null,null,null,null,null,null,null,null,null,null,null,null,null,null,null,null,"Literature report","Literature report",null,null,null,null,"MAKARELA","Makarela S.A.S"]
[null,null,null,null,null,null,null,null,null,null,null,null,null,null,null,null,null,null,null,null,null,null,null,null,null,null,null,null,"MCS Consultoría","MCS Consultoría y Monitoreo ambiental S.A.S",null,null,null,null,"MHNMC","Makuriwa - Museo de Historia Natural Marina de Colombia"]
[null,null,null,null,null,null,null,null,null,null,null,null,null,null,null,null,null,null,null,null,null,null,null,null,null,null,null,null,"MAKARELA","Makarela S.A.S",null,null,null,null,"MMU","Manchester Metropolitan University"]
[null,null,null,null,null,null,null,null,null,null,null,null,null,null,null,null,null,null,null,null,null,null,null,null,null,null,null,null,"MHNMC","Makuriwa - Museo de Historia Natural Marina de Colombia",null,null,null,null,"M_P","Marine & Port Consultants"]
[null,null,null,null,null,null,null,null,null,null,null,null,null,null,null,null,null,null,null,null,null,null,null,null,null,null,null,null,"MMU","Manchester Metropolitan University",null,null,null,null,"IAEA-MEL","Marine Environment Laboratories"]
[null,null,null,null,null,null,null,null,null,null,null,null,null,null,null,null,null,null,null,null,null,null,null,null,null,null,null,null,"M_P","Marine & Port Consultants",null,null,null,null,"MINCIENCIAS","Ministerio de Ciencia, Tecnología e Innovación"]
[null,null,null,null,null,null,null,null,null,null,null,null,null,null,null,null,null,null,null,null,null,null,null,null,null,null,null,null,"IAEA-MEL","Marine Environment Laboratories",null,null,null,null,"MA","Ministerio del Ambiente Haiti"]
[null,null,null,null,null,null,null,null,null,null,null,null,null,null,null,null,null,null,null,null,null,null,null,null,null,null,null,null,"MINCIENCIAS","Ministerio de Ciencia, Tecnología e Innovación",null,null,null,null,"MADS","Ministerio del Ambiente y Desarrollo Sostenible"]
[null,null,null,null,null,null,null,null,null,null,null,null,null,null,null,null,null,null,null,null,null,null,null,null,null,null,null,null,"MA","Ministerio del Ambiente Haiti",null,null,null,null,"MINAMBIENTE","Ministerio del Ambiente y Desarrollo Sostenible"]
[null,null,null,null,null,null,null,null,null,null,null,null,null,null,null,null,null,null,null,null,null,null,null,null,null,null,null,null,"MADS","Ministerio del Ambiente y Desarrollo Sostenible",null,null,null,null,"MHN-UC","Museo Historia Natural Universidad del Cauca"]
[null,null,null,null,null,null,null,null,null,null,null,null,null,null,null,null,null,null,null,null,null,null,null,null,null,null,null,null,"MINAMBIENTE","Ministerio del Ambiente y Desarrollo Sostenible",null,null,null,null,"MZUSP","Museu de Zoologia da Universidade de São Paulo"]
[null,null,null,null,null,null,null,null,null,null,null,null,null,null,null,null,null,null,null,null,null,null,null,null,null,null,null,null,"MHN-UC","Museo Historia Natural Universidad del Cauca",null,null,null,null,"NOAA FISHERIES","NOAA Southwest Fisheries Science Center"]
[null,null,null,null,null,null,null,null,null,null,null,null,null,null,null,null,null,null,null,null,null,null,null,null,null,null,null,null,"MZUSP","Museu de Zoologia da Universidade de São Paulo",null,null,null,null,"NEPA","National Environment and Planning Agency"]
[null,null,null,null,null,null,null,null,null,null,null,null,null,null,null,null,null,null,null,null,null,null,null,null,null,null,null,null,"NOAA FISHERIES","NOAA Southwest Fisheries Science Center",null,null,null,null,"NOAA","National Oceanic and Atmospheric Administration"]
[null,null,null,null,null,null,null,null,null,null,null,null,null,null,null,null,null,null,null,null,null,null,null,null,null,null,null,null,"NEPA","National Environment and Planning Agency",null,null,null,null,"OBIMAR","OBIMAR. Empresa Portuaria Quetzal"]
[null,null,null,null,null,null,null,null,null,null,null,null,null,null,null,null,null,null,null,null,null,null,null,null,null,null,null,null,"NOAA","National Oceanic and Atmospheric Administration",null,null,null,null,"OBIS-SEAMAP","OBIS-SEAMAP"]
[null,null,null,null,null,null,null,null,null,null,null,null,null,null,null,null,null,null,null,null,null,null,null,null,null,null,null,null,"OBIMAR","OBIMAR. Empresa Portuaria Quetzal",null,null,null,null,"OBIS","Ocean Biogeographic Information System"]
[null,null,null,null,null,null,null,null,null,null,null,null,null,null,null,null,null,null,null,null,null,null,null,null,null,null,null,null,"OBIS-SEAMAP","OBIS-SEAMAP",null,null,null,null,"OIR","Oceanario de las Islas del Rosario - CEINER"]
[null,null,null,null,null,null,null,null,null,null,null,null,null,null,null,null,null,null,null,null,null,null,null,null,null,null,null,null,"OBIS","Ocean Biogeographic Information System",null,null,null,null,"OIEA","Orgánismo Internacional de Energía Atómica"]
[null,null,null,null,null,null,null,null,null,null,null,null,null,null,null,null,null,null,null,null,null,null,null,null,null,null,null,null,"OIR","Oceanario de las Islas del Rosario - CEINER",null,null,null,null,"PNN_GORGONA","Parque Nacional Natural Gorgona"]
[null,null,null,null,null,null,null,null,null,null,null,null,null,null,null,null,null,null,null,null,null,null,null,null,null,null,null,null,"OIEA","Orgánismo Internacional de Energía Atómica",null,null,null,null,"UAESPNN","Parques Nacionales Naturales de Colombia"]
[null,null,null,null,null,null,null,null,null,null,null,null,null,null,null,null,null,null,null,null,null,null,null,null,null,null,null,null,"PNN_GORGONA","Parque Nacional Natural Gorgona",null,null,null,null,"PNN","Parques Nacionales Naturales de Colombia "]
[null,null,null,null,null,null,null,null,null,null,null,null,null,null,null,null,null,null,null,null,null,null,null,null,null,null,null,null,"UAESPNN","Parques Nacionales Naturales de Colombia",null,null,null,null,"PARTICULAR","Particular"]
[null,null,null,null,null,null,null,null,null,null,null,null,null,null,null,null,null,null,null,null,null,null,null,null,null,null,null,null,"PNN","Parques Nacionales Naturales de Colombia ",null,null,null,null,"PUJ","Pontificia Universidad Javeriana"]
[null,null,null,null,null,null,null,null,null,null,null,null,null,null,null,null,null,null,null,null,null,null,null,null,null,null,null,null,"PARTICULAR","Particular",null,null,null,null,"RAC-CIMAB","RAC-CIMAB"]
[null,null,null,null,null,null,null,null,null,null,null,null,null,null,null,null,null,null,null,null,null,null,null,null,null,null,null,null,"PUJ","Pontificia Universidad Javeriana",null,null,null,null,"REPSOL","Repsol Exploración Colombia S.A."]
[null,null,null,null,null,null,null,null,null,null,null,null,null,null,null,null,null,null,null,null,null,null,null,null,null,null,null,null,"RAC-CIMAB","RAC-CIMAB",null,null,null,null,"SERNA","Secretaría de Recursos Naturales y Ambiente (SERNA)/Centro de Estudios y Control de Contaminantes (CESCCO)"]
[null,null,null,null,null,null,null,null,null,null,null,null,null,null,null,null,null,null,null,null,null,null,null,null,null,null,null,null,"REPSOL","Repsol Exploración Colombia S.A.",null,null,null,null,"SERAMBIENTE","Servicios de Ingeniería Ambiental"]
[null,null,null,null,null,null,null,null,null,null,null,null,null,null,null,null,null,null,null,null,null,null,null,null,null,null,null,null,"SERNA","Secretaría de Recursos Naturales y Ambiente (SERNA)/Centro de Estudios y Control de Contaminantes (CESCCO)",null,null,null,null,"SEPC","Shell Exploration & Production Colombia GMBH"]
[null,null,null,null,null,null,null,null,null,null,null,null,null,null,null,null,null,null,null,null,null,null,null,null,null,null,null,null,"SERAMBIENTE","Servicios de Ingeniería Ambiental",null,null,null,null,"NMHN Smithsonian","Smithsonian Institution"]
[null,null,null,null,null,null,null,null,null,null,null,null,null,null,null,null,null,null,null,null,null,null,null,null,null,null,null,null,"SEPC","Shell Exploration & Production Colombia GMBH",null,null,null,null,"SPRC - CNR","Sociedad Portuaria Rio Cordoba - Colombian Natural Resources S.A.S."]
[null,null,null,null,null,null,null,null,null,null,null,null,null,null,null,null,null,null,null,null,null,null,null,null,null,null,null,null,"NMHN Smithsonian","Smithsonian Institution",null,null,null,null,"SPSM","Sociedad Portuaria de Santa Marta"]
[null,null,null,null,null,null,null,null,null,null,null,null,null,null,null,null,null,null,null,null,null,null,null,null,null,null,null,null,"SPRC - CNR","Sociedad Portuaria Rio Cordoba - Colombian Natural Resources S.A.S.",null,null,null,null,"UPR Humacao","UNIVERSIDAD DE PUERTO RICO EN HUMACAO"]
[null,null,null,null,null,null,null,null,null,null,null,null,null,null,null,null,null,null,null,null,null,null,null,null,null,null,null,null,"SPSM","Sociedad Portuaria de Santa Marta",null,null,null,null,"UR Camelia, IRD","UR Camelia, IRD"]
[null,null,null,null,null,null,null,null,null,null,null,null,null,null,null,null,null,null,null,null,null,null,null,null,null,null,null,null,"UPR Humacao","UNIVERSIDAD DE PUERTO RICO EN HUMACAO",null,null,null,null,"UNEP CAR/RCU","United Nations Environment Programme - Caribbean Regional Coordinating Unit"]
[null,null,null,null,null,null,null,null,null,null,null,null,null,null,null,null,null,null,null,null,null,null,null,null,null,null,null,null,"UR Camelia, IRD","UR Camelia, IRD",null,null,null,null,"UASD","Universidad Autónoma de Santo Domingo"]
[null,null,null,null,null,null,null,null,null,null,null,null,null,null,null,null,null,null,null,null,null,null,null,null,null,null,null,null,"UNEP CAR/RCU","United Nations Environment Programme - Caribbean Regional Coordinating Unit",null,null,null,null,"UFB","Universidad Federal de Bahía"]
[null,null,null,null,null,null,null,null,null,null,null,null,null,null,null,null,null,null,null,null,null,null,null,null,null,null,null,null,"UASD","Universidad Autónoma de Santo Domingo",null,null,null,null,"UJTL-MM","Universidad Jorje Tadeo Lozano-Museo del Mar"]
[null,null,null,null,null,null,null,null,null,null,null,null,null,null,null,null,null,null,null,null,null,null,null,null,null,null,null,null,"UFB","Universidad Federal de Bahía",null,null,null,null,"UNMSM","Universidad Nacional Mayor de San Marcos"]
[null,null,null,null,null,null,null,null,null,null,null,null,null,null,null,null,null,null,null,null,null,null,null,null,null,null,null,null,"UJTL-MM","Universidad Jorje Tadeo Lozano-Museo del Mar",null,null,null,null,"UNal","Universidad Nacional de Colombia"]
[null,null,null,null,null,null,null,null,null,null,null,null,null,null,null,null,null,null,null,null,null,null,null,null,null,null,null,null,"UNMSM","Universidad Nacional Mayor de San Marcos",null,null,null,null,"USB","Universidad Simón Bolivar"]
[null,null,null,null,null,null,null,null,null,null,null,null,null,null,null,null,null,null,null,null,null,null,null,null,null,null,null,null,"UNal","Universidad Nacional de Colombia",null,null,null,null,"UDEA","Universidad de Antioquia"]
[null,null,null,null,null,null,null,null,null,null,null,null,null,null,null,null,null,null,null,null,null,null,null,null,null,null,null,null,"USB","Universidad Simón Bolivar",null,null,null,null,"UJTL-FCM","Universidad de Bogotá Jorge Tadeo Lozano, Fac. de Ciencias Naturales e Ingenieria"]
[null,null,null,null,null,null,null,null,null,null,null,null,null,null,null,null,null,null,null,null,null,null,null,null,null,null,null,null,"UDEA","Universidad de Antioquia",null,null,null,null,"UCartagena","Universidad de Cartagena"]
[null,null,null,null,null,null,null,null,null,null,null,null,null,null,null,null,null,null,null,null,null,null,null,null,null,null,null,null,"UJTL-FCM","Universidad de Bogotá Jorge Tadeo Lozano, Fac. de Ciencias Naturales e Ingenieria",null,null,null,null,"UCO","Universidad de Córdoba"]
[null,null,null,null,null,null,null,null,null,null,null,null,null,null,null,null,null,null,null,null,null,null,null,null,null,null,null,null,"UCartagena","Universidad de Cartagena",null,null,null,null,"UF","Universidad de Florida"]
[null,null,null,null,null,null,null,null,null,null,null,null,null,null,null,null,null,null,null,null,null,null,null,null,null,null,null,null,"UCO","Universidad de Córdoba",null,null,null,null,"UniGie","Universidad de Giessen"]
[null,null,null,null,null,null,null,null,null,null,null,null,null,null,null,null,null,null,null,null,null,null,null,null,null,null,null,null,"UF","Universidad de Florida",null,null,null,null,"UNIBAGUE","Universidad de Ibague"]
[null,null,null,null,null,null,null,null,null,null,null,null,null,null,null,null,null,null,null,null,null,null,null,null,null,null,null,null,"UniGie","Universidad de Giessen",null,null,null,null,"UDES","Universidad de La Sabana"]
[null,null,null,null,null,null,null,null,null,null,null,null,null,null,null,null,null,null,null,null,null,null,null,null,null,null,null,null,"UNIBAGUE","Universidad de Ibague",null,null,null,null,"UDO - NS","Universidad de Oriente - Núcleo de Sucre"]
[null,null,null,null,null,null,null,null,null,null,null,null,null,null,null,null,null,null,null,null,null,null,null,null,null,null,null,null,"UDES","Universidad de La Sabana",null,null,null,null,"UNIGUAJIRA","Universidad de la Guajira"]
[null,null,null,null,null,null,null,null,null,null,null,null,null,null,null,null,null,null,null,null,null,null,null,null,null,null,null,null,"UDO - NS","Universidad de Oriente - Núcleo de Sucre",null,null,null,null,"UniMagdalena","Universidad del Magdalena"]
[null,null,null,null,null,null,null,null,null,null,null,null,null,null,null,null,null,null,null,null,null,null,null,null,null,null,null,null,"UNIGUAJIRA","Universidad de la Guajira",null,null,null,null,"UPacifico","Universidad del Pacífico"]
[null,null,null,null,null,null,null,null,null,null,null,null,null,null,null,null,null,null,null,null,null,null,null,null,null,null,null,null,"UniMagdalena","Universidad del Magdalena",null,null,null,null,"UT","Universidad del Tolima"]
[null,null,null,null,null,null,null,null,null,null,null,null,null,null,null,null,null,null,null,null,null,null,null,null,null,null,null,null,"UNINORTE","Universidad del Norte",null,null,null,null,"UNIVALLE","Universidad del Valle"]
[null,null,null,null,null,null,null,null,null,null,null,null,null,null,null,null,null,null,null,null,null,null,null,null,null,null,null,null,"UPacifico","Universidad del Pacífico",null,null,null,null,"UC","Universidae do Cerá, Estaçao de Biologia Marinha"]
[null,null,null,null,null,null,null,null,null,null,null,null,null,null,null,null,null,null,null,null,null,null,null,null,null,null,null,null,"UT","Universidad del Tolima",null,null,null,null,"UNH","University of New Hampshire"]
[null,null,null,null,null,null,null,null,null,null,null,null,null,null,null,null,null,null,null,null,null,null,null,null,null,null,null,null,"UNIVALLE","Universidad del Valle",null,null,null,null,"UM Francia","Université de Montpellier"]
[null,null,null,null,null,null,null,null,null,null,null,null,null,null,null,null,null,null,null,null,null,null,null,null,null,null,null,null,"UC","Universidae do Cerá, Estaçao de Biologia Marinha",null,null,null,null,"VIMS-SI","Virginia Institute of Marine Science / Smithsonian Institution"]
[null,null,null,null,null,null,null,null,null,null,null,null,null,null,null,null,null,null,null,null,null,null,null,null,null,null,null,null,"UNH","University of New Hampshire",null,null,null,null,"WCS","Wildlife Conservation Society"]
[null,null,null,null,null,null,null,null,null,null,null,null,null,null,null,null,null,null,null,null,null,null,null,null,null,null,null,null,"UM Francia","Université de Montpellier"]
[null,null,null,null,null,null,null,null,null,null,null,null,null,null,null,null,null,null,null,null,null,null,null,null,null,null,null,null,"VIMS-SI","Virginia Institute of Marine Science / Smithsonian Institution"]
[null,null,null,null,null,null,null,null,null,null,null,null,null,null,null,null,null,null,null,null,null,null,null,null,null,null,null,null,"WCS","Wildlife Conservation Society"]

{"sheet":"Otras referencias","index":5,"n_rows":33,"n_cols":16,"rows_kept":33,"cut":false,"hidden":false,"merged":[[20,3,20,5],[4,13,4,15],[4,3,4,5],[4,7,4,8],[0,0,2,6],[4,0,4,1],[4,10,4,11]]}
["Estas son listas para variables con valores que no se encuentran codificados, pero que deben manejarse de manera estandarizada. \nSi se requiere agregar un valor nuevo hagalo debajo de la lista correspondiente"]
[]
[]
[]
["UNIDADES DE MEDIDA",null,null,"PROYECTO",null,null,null,"ROLES",null,null,"METODOLOGIAS",null,null,"TEMATICAS"]
["CODIGO","DESCRIPCION",null,"COD","PROYECTO","PROYECTO DESC",null,4,"Captura en campo",null,"CODIGO","DESCRIPCION",null,"COD METODOLOGIA","COD TEMATICA","DESCRIPCION"]
[10,"cm",null,3572,"KFW","KFW",null,6,"Revisar datos",null,872,"Playas - ASPECTOS FISICOS",null,872,76,"Playas"]
[11,"m",null,null,null,null,null,3497,"Coordinador actividad de campo",null,871,"Playas - MEGAFAUNA",null,870,268,"PLAYAS MACROFAUNA"]
[69,"g",null,null,null,null,null,null,null,null,870,"Playas - MACROFAUNA",null,871,269,"PLAYAS MEGAFAUNA"]
[142,"Ind/Estación"]
[]
[]
[]
[]
[]
[]
[]
[]
[]
[]
[null,null,null,"CODIGOS LOV"]
[null,null,null,"DESCRIPCIÓN","CÓDIGO","GRUPO"]
[null,null,null,"Departamento",10,2]
[null,null,null,"Sector",20,2]
[null,null,null,"Punto",30,2]
[null,null,null,"Parcela",35,2]
[null,null,null,"Estaciones",40,2]
[null,null,null,"Region",50,2]
[null,null,null,"Unidad_de_Manejo",60,2]
[null,null,null,"Unidad_Ambiental_Costera",70,2]
[null,null,null,"Localidad",80,2]
[null,null,null,"Bloque_Exploracion",85,2]
[null,null,null,"Area",90,2]

{"sheet":"AGD_MUESTREOS","index":6,"n_rows":0,"n_cols":0,"rows_kept":0,"cut":false,"hidden":true,"merged":[]}

{"sheet":"AGD_PARAMETRO","index":7,"n_rows":0,"n_cols":0,"rows_kept":0,"cut":false,"hidden":true,"merged":[]}

{"sheet":"AGD_MUESTRAS","index":8,"n_rows":0,"n_cols":0,"rows_kept":0,"cut":false,"hidden":true,"merged":[]}

{"sheet":"AGD_MUESTRAS_VARIABLES","index":9,"n_rows":0,"n_cols":0,"rows_kept":0,"cut":false,"hidden":true,"merged":[]}

{"sheet":"AGD_AUTORIAS","index":10,"n_rows":0,"n_cols":0,"rows_kept":0,"cut":false,"hidden":true,"merged":[]}